Cogmind - Beta 12 X4 @@@ ROGUE MODE // 2022.11.26 @ 15:44:12 // Winter2019/RPGLIKE Player: Terminus Result: Destroyed by H-88 Terminator with Heavy Machine Gun Performance ------------- Evolutions (9) 4500 Regions Visited (34) 6800 Robots Destroyed (2146) 10730 Value Destroyed (116211) 116211 Prototype IDs (102) 2040 Alien Tech Used (7) 1400 Bonus (129634) 129634 TOTAL SCORE: 271315 Bonus ------- Triggered High Security 5500 High Alert Combat Kills 107223 Follower Combat Kills 5088 Network Hubs Disabled 200 Aligned with FarCom 300 Met Zhirov 300 Met Warlord at Base 500 MAIN.C Attacked Warlord 500 Warlord Defense Kills 4822 Met R17 at Cetus 500 Used Core Reset Matrix 3000 Met Warlord at Research 2000 Invited to Help at Command 2000 Scanned by Researcher 500 Acquired SGEMP 2000 Destroyed MAIN.C Guards 500 Friendly Fire -5299 Cogmind --------- Core Integrity 0/2250 Matter 300/300 Energy 910/950 System Corruption 0% Temperature Cool (33) Movement Immobile (Siege) Location -1/Command Parts ------- > --- POWER (3) -------- Improved Quantum Reactor Vortex Chain Reactor > --- PROPULSION (6) --- Heavy Siege Treads Heavy Siege Treads Heavy Siege Treads > --- UTILITY (11) ----- Advanced Power Amplifier Advanced Signal Interpreter Experimental Target Analyzer Experimental Target Analyzer Experimental Core Analyzer Experimental Core Analyzer Advanced Kinecellerator Experimental Weapon Cycler Graphene Brace AEGIS Remote Shield Long-range Tractor Beam > --- WEAPON (6) ------- 8R-AWN's Boregun 8R-AWN's Boregun Multirail Multirail Multirail Multirail > --- INVENTORY (6) ---- Matter Compressor (250) AEGIS Remote Shield Spacefold Activator Enhanced Nova Cannon Multirail Multirail Peak State ------------ > --- POWER ------------ Improved Quantum Reactor Vortex Chain Reactor > --- PROPULSION ------- Heavy Siege Treads Heavy Siege Treads Heavy Siege Treads > --- UTILITY ---------- Advanced Power Amplifier Advanced Signal Interpreter Experimental Target Analyzer Experimental Target Analyzer Experimental Core Analyzer Experimental Core Analyzer Advanced Kinecellerator Experimental Weapon Cycler Graphene Brace AEGIS Remote Shield Spacefold Activator > --- WEAPON ----------- 8R-AWN's Boregun 8R-AWN's Boregun Multirail Multirail Multirail Multirail > --- INVENTORY -------- Matter Compressor AEGIS Remote Shield Long-range Tractor Beam Enhanced Nova Cannon Multirail Multirail [Rating: 249] Favorites ----------- Power Antimatter Reactor Engine Heavy Ion Engine Power Core Fission Core Reactor Antimatter Reactor Propulsion Heavy Siege Treads Treads Heavy Siege Treads Leg Advanced Myomer Leg Utility Experimental Core Analyzer Device Long-range Tractor Beam Storage Large Matter Pod Processor Experimental Core Analyzer Protection Medium Reactive Plating Artifact Spacefold Activator Weapon Advanced KE Penetrator Energy Gun EM Pulse Gun Energy Cannon Enhanced Nova Cannon Ballistic Gun Advanced KE Penetrator Ballistic Cannon Light Cannon Launcher Rocket Launcher Special Weapon Plasma Cutter Build | -11 -10 -10 -9 -9 -9 -8 -8 -7 -6 -6 -6 -6 -6 -6 -6 -5 -5 -5 -5 -5 -5 -4 -4 -4 -4 -4 -3 -3 -3 -3 -2 -2 -1 -1 ------- Run | Scr Mat Min Mat Min Exi Min Mat Fac Fac Was Fac Ext Cet Arc Hub Fac Was Fac Upp Upp Zhi Pro Fac Upp Upp War Pro Res Qua Sec Res Tes Acc Com Slots Evolved 22 | 4 3 2 2 1 . . 3 1 . 1 1 1 . . . 1 . 2 . . . . . . . . . . . . . . . . Power 2 | . 1 . . . . . 1 . . . . . . . . . . . . . . . . . . . . . . . . . . . Propulsion 5 | 1 . . 1 . . . 1 . . . . . . . . . . 2 . . . . . . . . . . . . . . . . Utility 10 | 2 1 1 1 1 . . 1 1 . 1 . . . . . 1 . . . . . . . . . . . . . . . . . . Weapon 5 | 1 1 1 . . . . . . . . 1 1 . . . . . . . . . . . . . . . . . . . . . . Parts Attached 266 | 5 18 4 14 5 28 12 11 17 . 7 5 5 8 3 4 10 6 4 2 4 12 1 4 2 . 9 2 15 2 13 6 10 4 14 Power 31 | 1 3 . . 1 2 . . 7 . 4 . . 2 . . . 2 1 . . 2 1 2 . . 1 . . . . 1 1 . . Engine 10 | 1 3 . . 1 1 . . 4 . . . . . . . . . . . . . . . . . . . . . . . . . . Core 5 | . . . . . 1 . . 3 . 1 . . . . . . . . . . . . . . . . . . . . . . . . Reactor 16 | . . . . . . . . . . 3 . . 2 . . . 2 1 . . 2 1 2 . . 1 . . . . 1 1 . . Propulsion 21 | 2 . . 4 1 2 3 . 1 . 2 . . 1 . . . 2 3 . . . . . . . . . . . . . . . . Treads 20 | 2 . . 4 1 1 3 . 1 . 2 . . 1 . . . 2 3 . . . . . . . . . . . . . . . . Leg 1 | . . . . . 1 . . . . . . . . . . . . . . . . . . . . . . . . . . . . . Wheel . | . . . . . . . . . . . . . . . . . . . . . . . . . . . . . . . . . . . Hover . | . . . . . . . . . . . . . . . . . . . . . . . . . . . . . . . . . . . Flight . | . . . . . . . . . . . . . . . . . . . . . . . . . . . . . . . . . . . Utility 120 | . 8 1 1 2 12 6 9 5 . 1 4 4 1 3 2 5 2 . 2 4 4 . 1 2 . 6 2 10 2 9 2 4 . 6 Device 83 | . 5 1 . 1 6 3 2 2 . 1 3 3 1 3 1 4 2 . 2 4 3 . 1 2 . 4 2 8 2 7 2 3 . 5 Storage 2 | . 1 . . . . . . 1 . . . . . . . . . . . . . . . . . . . . . . . . . . Processor 14 | . . . 1 . 1 1 1 1 . . 1 . . . 1 1 . . . . . . . . . 2 . 2 . 1 . 1 . . Hackware . | . . . . . . . . . . . . . . . . . . . . . . . . . . . . . . . . . . . Protection 19 | . 2 . . 1 5 2 6 1 . . . 1 . . . . . . . . 1 . . . . . . . . . . . . . Artifact 2 | . . . . . . . . . . . . . . . . . . . . . . . . . . . . . . 1 . . . 1 Weapon 94 | 2 7 3 9 1 12 3 2 4 . . 1 1 4 . 2 5 . . . . 6 . 1 . . 2 . 5 . 4 3 5 4 8 Energy Gun 3 | 1 1 1 . . . . . . . . . . . . . . . . . . . . . . . . . . . . . . . . Energy Cannon 4 | . . . . . . . . . . . . . . . . . . . . . . . . . . 1 . . . 1 . . 1 1 Ballistic Gun 69 | 1 5 2 6 1 8 2 1 2 . . 1 . 4 . 2 4 . . . . 6 . 1 . . 1 . 4 . 3 2 3 3 7 Ballistic Cannon 4 | . 1 . . . 1 . . . . . . 1 . . . . . . . . . . . . . . . . . . . 1 . . Launcher 8 | . . . 3 . 2 . 1 1 . . . . . . . . . . . . . . . . . . . 1 . . . . . . Special Weapon 6 | . . . . . 1 1 . 1 . . . . . . . 1 . . . . . . . . . . . . . . 1 1 . . Impact Weapon . | . . . . . . . . . . . . . . . . . . . . . . . . . . . . . . . . . . . Slashing Weapon . | . . . . . . . . . . . . . . . . . . . . . . . . . . . . . . . . . . . Piercing Weapon . | . . . . . . . . . . . . . . . . . . . . . . . . . . . . . . . . . . . Special Melee Weapon . | . . . . . . . . . . . . . . . . . . . . . . . . . . . . . . . . . . . Unidentified Prototypes 43 | . 1 . 1 . 7 2 2 2 . . . . 3 . . 2 2 . . 1 4 . . . . 4 . 6 . 2 . 1 . 3 Corrupted Parts 2 | . . . . . . . . . . . . . 2 . . . . . . . . . . . . . . . . . . . . . System Corruption 10 | . . . . . . . . . . . . . 10 . . . . . . . . . . . . . . . . . . . . . Parts Lost . | . . . . . . . . . . . . . . . . . . . . . . . . . . . . . . . . . . . Power . | . . . . . . . . . . . . . . . . . . . . . . . . . . . . . . . . . . . Propulsion . | . . . . . . . . . . . . . . . . . . . . . . . . . . . . . . . . . . . Utility . | . . . . . . . . . . . . . . . . . . . . . . . . . . . . . . . . . . . Weapon . | . . . . . . . . . . . . . . . . . . . . . . . . . . . . . . . . . . . Highest Loss Streak . | . . . . . . . . . . . . . . . . . . . . . . . . . . . . . . . . . . . To Critical Strikes . | . . . . . . . . . . . . . . . . . . . . . . . . . . . . . . . . . . . Average Slot Usage (%) 89 | . 92 99 99 100 99 99 98 99 100 90 89 89 90 90 90 91 91 90 88 87 67 88 87 88 88 86 84 83 84 83 83 83 84 83 Engine 2 | . 11 17 13 12 9 6 5 6 5 3 . . . . . . . . . . . . . . . . . . . . . . . . Core 1 | . . . . . 2 6 5 8 10 8 . . . . . . . . . . . . . . . . . . . . . . . . Reactor 6 | . . . . . . . . . . 1 13 13 13 13 13 12 12 11 11 11 11 11 10 11 11 9 7 7 7 7 6 7 7 7 Treads 12 | . 22 17 17 18 17 18 16 19 20 11 9 8 8 8 8 8 8 8 11 11 11 11 11 11 11 11 11 11 11 11 11 11 11 11 Device 23 | . 20 18 21 22 24 24 22 25 25 25 28 30 30 29 29 25 25 24 23 22 22 23 23 23 23 22 19 18 23 22 22 23 23 23 Processor 13 | . . . 3 6 6 6 10 12 15 14 12 8 8 8 8 14 16 15 15 15 15 15 15 15 15 15 19 21 19 19 19 17 19 19 Protection 4 | . 7 17 13 12 11 12 10 5 5 4 4 4 4 4 4 4 4 3 3 3 3 3 3 3 3 3 3 1 . . . . . . Ballistic Gun 22 | . 14 27 23 25 24 22 22 20 20 19 19 21 25 26 26 25 25 24 23 23 2 23 23 23 23 22 23 22 23 23 22 22 22 22 Naked Turns . | . . . . . . . . . . . . . . . . . . . . . . . . . . . . . . . . . . . Heaviest Build 127 | 5 34 39 42 47 65 84 84 91 79 99 113 113 125 126 125 121 120 120 119 119 119 119 119 118 118 127 119 119 113 115 115 118 124 125 Greatest Support 210 | 40 40 40 67 66 66 105 105 125 125 140 140 140 150 150 150 150 150 210 210 210 210 210 210 210 210 210 210 210 210 210 210 210 210 210 Greatest Overweight (x) 1 | . . . . . 1 . . . . . . . . . . . 1 . . . . . . . . . . . . . . . . . Average Overweight (x) . | . . . . . . . . . . . . . . . . . . . . . . . . . . . . . . . . . . . Largest Inventory Capacity 6 | 1 2 3 5 5 5 5 6 6 6 6 6 6 6 6 6 6 6 6 6 6 6 6 6 6 6 6 6 6 6 6 6 6 6 6 Average Capacity 5 | . 1 2 4 5 5 5 5 6 6 6 6 6 6 6 6 6 6 6 6 6 6 6 6 6 6 6 6 6 6 6 6 6 6 6 Most Carried 6 | 1 2 3 5 5 5 5 6 6 6 6 6 6 6 6 6 6 6 6 5 6 6 6 6 6 6 6 6 6 6 6 6 6 6 6 Average Carried 5 | . 1 2 4 4 4 5 4 5 6 5 5 6 6 6 6 6 5 5 5 5 6 5 5 6 6 5 5 5 5 5 5 5 5 5 Final Capacity 6 | 1 2 3 5 5 5 5 6 6 6 6 6 6 6 6 6 6 6 6 6 6 6 6 6 6 6 6 6 6 6 6 6 6 6 6 Final Carried 6 | 1 2 2 5 5 5 5 6 6 6 6 6 6 6 6 6 6 6 5 5 6 6 6 6 6 6 6 6 5 6 6 6 6 6 6 Class Distribution -------------------- 60% | Scavenger-Executioner 18% | Scavenger-Gunner 10% | Tank 5% | Scavenger-Mutant 3% | Mutant Dominant Class ---------------- Mutant | -10/Materials Tank | -10/Mines Tank | -9/Materials Tank | -9/Mines Tank | -9/Exiles Scavenger-Mutant | -8/Mines Scavenger-Gunner | -8/Materials Scavenger-Gunner | -7/Factory Scavenger-Gunner | -6/Factory Scavenger-Mutant | -6/Waste Scavenger-Gunner | -6/Factory Scavenger-Gunner | -6/Extension Scavenger-Executioner | -6/Cetus Scavenger-Mutant | -6/Archives Scavenger-Executioner | -6/Hub_04(d) Scavenger-Executioner | -5/Factory Scavenger-Executioner | -5/Waste Scavenger-Executioner | -5/Factory Scavenger-Executioner | -5/Upper Caves Scavenger-Executioner | -5/Upper Caves Scavenger-Mutant | -5/Zhirov Scavenger-Executioner | -4/Proximity Caves Scavenger-Executioner | -4/Factory Scavenger-Executioner | -4/Upper Caves Scavenger-Executioner | -4/Upper Caves Scavenger-Executioner | -4/Warlord Scavenger-Executioner | -3/Proximity Caves Scavenger-Executioner | -3/Research Scavenger-Executioner | -3/Quarantine Scavenger-Executioner | -3/Section 7 Scavenger-Executioner | -2/Research Scavenger-Executioner | -2/Testing Scavenger-Executioner | -1/Access Scavenger-Executioner | -1/Command Resources | -11 -10 -10 -9 -9 -9 -8 -8 -7 -6 -6 -6 -6 -6 -6 -6 -5 -5 -5 -5 -5 -5 -4 -4 -4 -4 -4 -3 -3 -3 -3 -2 -2 -1 -1 ----------- Run | Scr Mat Min Mat Min Exi Min Mat Fac Fac Was Fac Ext Cet Arc Hub Fac Was Fac Upp Upp Zhi Pro Fac Upp Upp War Pro Res Qua Sec Res Tes Acc Com Matter Collected 59542 | 250 688 330 1479 574 1037 803 2000 4060 . 214 3606 760 419 253 951 1809 334 2218 164 658 . 1180 4185 544 154 1331 303 4312 2188 4094 4712 2934 4796 6202 Remotely 57341 | . 552 330 1479 574 472 549 2000 4026 . 214 3590 760 413 253 951 1809 334 2218 164 648 . 1003 4185 544 154 1167 303 4185 2163 4088 4712 2934 4796 5771 Salvage Created 142735 | . 597 338 2098 589 517 496 2782 8965 . 1527 6650 1144 405 79 1986 4488 1049 5742 140 740 . 1700 10179 795 535 2427 533 11690 10816 11837 12674 10322 11748 17147 Parts 5414 | . 46 24 177 38 78 60 175 333 . 24 258 59 24 12 102 227 11 233 12 39 . 63 354 42 37 121 28 487 205 453 649 200 331 512 Haulers Intercepted 46 | . 2 . 6 . . . 6 7 . . 1 . . . 3 3 . 5 . 1 . . 2 . . . . 7 . . . . 3 . Recyclers Shooed 9 | . . 2 . 1 . . . . . . 4 . . . . 1 . . . . . . . . . . . . . . . . 1 . Parts Field Recycled . | . . . . . . . . . . . . . . . . . . . . . . . . . . . . . . . . . . . Retrieved Matter . | . . . . . . . . . . . . . . . . . . . . . . . . . . . . . . . . . . . Parts Self-Destructed 212 | . . . . . . . . . . . . . . . . . . . 12 39 . 66 . 28 39 . 28 . . . . . . . Prevented 5 | . . . . . . . . . . . . . . . . . . . . . . 4 . 1 . . . . . . . . . . Kills | -11 -10 -10 -9 -9 -9 -8 -8 -7 -6 -6 -6 -6 -6 -6 -6 -5 -5 -5 -5 -5 -5 -4 -4 -4 -4 -4 -3 -3 -3 -3 -2 -2 -1 -1 ------- Run | Scr Mat Min Mat Min Exi Min Mat Fac Fac Was Fac Ext Cet Arc Hub Fac Was Fac Upp Upp Zhi Pro Fac Upp Upp War Pro Res Qua Sec Res Tes Acc Com Combat Hostiles Destroyed 1966 | . 17 12 54 18 8 7 42 125 . . 101 13 3 1 27 52 1 77 8 14 . 29 130 16 10 34 10 146 138 176 186 137 168 206 Melee 1 | . . . . . . . . . . . . . . . . . . . . . . . . . . . . . . . 1 . . . Guns 1915 | . 5 8 44 17 . 6 41 122 . . 101 13 3 1 27 50 1 77 8 14 . 29 129 16 10 34 10 146 131 176 185 137 168 206 Cannons 14 | . 12 . . . 1 1 . . . . . . . . . . . . . . . . . . . . . . . . . . . . AOE 36 | . . 4 10 1 7 . 1 3 . . . . . . . 2 . . . . . . 1 . . . . . 7 . . . . . Classes Destroyed 32 | . 6 1 7 . 3 1 . 2 . . 3 . . . . . 1 . . 1 . . . 1 . 2 . . 1 1 1 . . 1 Worker 83 | . . . 4 . . 5 2 4 . . 14 1 . . 7 9 . 2 . . . . 3 . . . . 13 . 1 . . 8 10 Builder 55 | . 1 . . . . 5 5 6 . . 8 1 . . 1 3 . . . . . . 12 . . . . 4 4 2 . . 3 . Tunneler 13 | . . 1 1 2 . 3 . 2 . . . 2 . . . . . 1 . . . . . . . . . 1 . . . . . . Hauler 46 | . 2 . 6 . . . 6 7 . . 1 . . . 3 3 . 5 . 1 . . 2 . . . . 7 . . . . 3 . Recycler 39 | . 1 1 1 1 . 3 2 9 . . 6 . . . . 2 . 1 . . . . 2 . . . . 6 . . . . 1 3 Carrier 88 | . . . . . . . . 4 . . 2 1 . . 1 4 . 8 . . . . 7 . . . . 7 6 5 7 6 10 20 Mechanic 83 | . . . 2 . . . 3 10 . . 2 . . . . 2 . 2 . . . . 9 . . . . 4 13 4 6 8 8 10 Operator 12 | . . . 1 . . . 1 2 . . . 1 . 2 . . . . . . . . 1 . . . . 1 3 . . . . . Turret 1 | . . . . . 1 . . . . . . . . . . . . . . . . . . . . . . . . . . . . . Watcher 63 | . 2 . 5 . . . 5 7 . . 2 2 . . 2 5 . . . . . . 8 . . . . 5 3 4 3 . 6 4 Swarmer 141 | . 3 6 4 8 . 3 6 7 . . 8 . . . . 9 . . 8 5 . 11 . 3 1 3 4 19 . 9 10 . . 14 Cutter 5 | . . . . . . . . . . . . . . . . . . . . . . . . . . . . . . . . . . 5 Saboteur 89 | . . . . . . . . . . . 5 1 . . 1 2 . 5 . . . . 3 . . . . 4 12 10 7 14 11 14 Grunt 761 | . 14 6 35 8 . 2 25 64 . . 53 7 . . 15 15 . 24 . 7 . 9 64 4 6 5 3 54 48 45 47 48 80 73 Brawler 110 | . . . 3 2 . . 1 15 . . 3 . . . 1 1 . 2 . 1 . 4 14 . . 7 . 8 6 14 2 7 10 9 Duelist 134 | . . . 3 . . . 1 15 . . 7 . . . . 5 . 8 . . . 4 10 . 1 3 . 7 8 14 11 13 10 14 Protector 80 | . . . 2 . . . . 3 . . 2 1 . . 1 2 . 5 . . . . 4 . . 3 . 6 4 15 7 9 10 6 Researcher 3 | . . . . . . . . . . . . . . . . . . . . . . . . . . . . . 1 2 . . . . Sentry 71 | . . . 7 . . . 8 6 . . 4 4 . 1 1 3 . 2 . . . 1 6 1 . . 1 5 4 7 8 . 1 1 Demolisher 3 | . . . . . . . . . . . . . . . . . . . . . . . . . . . . . . . 3 . . . Specialist 28 | . . . . . . . . . . . 6 . . . 2 5 . . . . . . 4 . . 1 . 3 3 4 . . . . Hunter 155 | . . . . . . 1 1 5 . . 7 . . . 2 3 . 15 . . . . 8 2 . 2 2 7 21 21 21 8 9 20 Programmer 235 | . . . . . . . . 10 . . 4 . . . . 6 . 15 . . . . 14 1 2 6 . 27 23 22 39 24 21 21 Heavy 8 | . . . . . . . . . . . 2 . . . 1 1 . . . . . . 1 . . . . 2 . 1 . . . . Behemoth 9 | . . . . . . . . . . . . . . . . . . . . 1 . . 2 . . . . 1 . 1 . . 3 1 Compactor 1 | . . . . . . . . . . . . . . . . . 1 . . . . . . . . . . . . . . . . . Cetus Guard 3 | . . . . . . . . . . . . . 3 . . . . . . . . . . . . . . . . . . . . . S7 Guard 3 | . . . . . . . . . . . . . . . . . . . . . . . . . . . . . . 3 . . . . M Guard 2 | . . . . . . . . . . . . . . . . . . . . . . . . . . . . . . . . . . 2 Lightning 3 | . . . . . . . . . . . . . . . 3 . . . . . . . . . . . . . . . . . . . Combat Programmer 2 | . . . . . . . . . . . . . . . . . . . . . . . . . . . . . . . . . . 2 Investigator 11 | . . . . . . . . . . . . . . . . . . . . . . . . . . . . . 3 1 1 3 1 2 Striker 51 | . . . . . . . . . . . . . . . . . . . . . . . . . . 1 . 2 3 3 20 5 8 9 Executioner 54 | . . . . . . . . . . . . . . . . . . . . . . . . . . 3 . 1 6 5 11 8 5 15 Alpha 7 2 | . . . . . . . . . . . . . . . . . . . . . . . . . . . . . . 2 . . . . Protovariant G 1 | . . . . . . . . . . . . . . . . . . . . . . . . . . . . . . . . 1 . . Zionite 8 | . . . . . 8 . . . . . . . . . . . . . . . . . . . . . . . . . . . . . Assembled 12 | . . . . . 7 . . . . . . . . . . . . . . . . . . . . . . . . . . . . 5 Surgeon 1 | . . . . . . . . . . . . . . . . . . 1 . . . . . . . . . . . . . . . . Thug 8 | . . . . . . . . . . . . . 1 . . . 1 1 . . . . . 4 . . . . . . 1 . . . Butcher 2 | . . . . . . . . . . . . . 1 . . . . . . . . . . . 1 . . . . . . . . . Guerrilla 1 | . . . . . . . . . . . . . . . 1 . . . . . . . . . . . . . . . . . . . Mutant 2 | . . . . . . . . . . . . . . . . . . . . . . . . 1 . 1 . . . . . . . . Best Kill Streak 51 | . 4 4 11 5 7 4 7 29 . . 19 5 2 2 14 22 1 42 7 5 . 18 26 7 5 12 4 12 45 48 34 49 34 51 Combat Bots Only 51 | . 4 3 9 5 7 3 5 19 . . 13 4 2 1 10 14 1 21 7 5 . 18 21 7 5 12 4 9 34 46 33 42 29 51 Max Kills in Single Turn 10 | . 1 3 5 3 3 3 3 7 . . 4 2 1 1 3 7 1 3 3 2 . 2 6 4 4 4 2 5 10 6 5 6 5 6 Gunslinging 3 | . . . 2 1 . . 1 1 . . 1 . . . 1 2 . 1 1 1 . 1 2 3 1 1 . 2 3 3 3 3 2 3 Exploded 6 | . . 3 4 1 3 . 1 3 . . . . . . . 2 . . . . . . 1 . . . . . 6 . . . . . Melee 1 | . . . . . . . . . . . . . . . . . . . . . . . . . . . . . . . 1 . . . Uniques/NPCs Destroyed 9 | . . . . . 4 1 . . . . . . 1 . . . . . . . . . . . . . . . . . . . 3 . 8R-AWN (-9/Exiles) EX-BIN (-9/Exiles) EX-HEX (-9/Exiles) EX-DEC (-9/Exiles) CL-ANK (-8/Mines) A7 (-6/Cetus) Zhirov (-1/Access) Svarog (-1/Access) Perun (-1/Access) Combat | -11 -10 -10 -9 -9 -9 -8 -8 -7 -6 -6 -6 -6 -6 -6 -6 -5 -5 -5 -5 -5 -5 -4 -4 -4 -4 -4 -3 -3 -3 -3 -2 -2 -1 -1 -------- Run | Scr Mat Min Mat Min Exi Min Mat Fac Fac Was Fac Ext Cet Arc Hub Fac Was Fac Upp Upp Zhi Pro Fac Upp Upp War Pro Res Qua Sec Res Tes Acc Com Damage Taken 30769 | . 627 366 990 182 818 73 674 1165 . . 1925 284 21 41 204 720 . 1113 14 76 . 190 1000 104 18 794 133 1410 1472 3453 3356 904 1596 7046 Core 22985 | . 500 244 697 121 579 49 410 835 . . 1359 185 12 28 157 492 . 771 9 53 . 133 734 74 16 551 85 1021 1129 2689 2648 696 1188 5520 Absorbed by Shields 24119 | . . . 381 72 299 30 258 433 . . 1018 271 20 37 200 699 . 834 17 78 . 204 1049 109 19 846 141 1478 1533 2897 2912 935 1684 5665 Reduced by Siege Mode 1457 | . . . . . . . . . . . 66 2 . . 7 14 . 77 . 2 . 5 55 6 . 46 7 86 69 249 211 53 136 366 Redirected to Core 21150 | . 358 193 589 112 533 36 363 784 . . 1228 167 12 28 133 485 . 736 9 53 . 133 693 74 8 531 85 963 1095 2473 2337 653 1164 5122 Regen/Repaired (Parts) 41 | . . . . . . . . . . . . . . . . . . 41 . . . . . . . . . . . . . . . . Core Remaining (%) 96 | 100 . 98 . . . 100 76 100 . . . . . . 98 . . . . . . 100 . . . . 99 . . 96 . 98 . . Volleys Fired 2372 | . 89 35 118 30 65 93 97 179 . 12 161 30 21 6 34 64 7 75 8 17 . 30 147 19 5 60 11 148 76 150 156 98 161 170 Largest 6 | . 3 3 4 4 4 4 4 4 . 2 5 5 6 6 6 6 6 6 6 6 . 6 6 6 6 6 6 6 6 6 6 6 6 6 Hottest 255 | . 75 69 99 97 111 116 116 116 . 60 144 144 200 200 200 203 200 200 200 200 . 200 200 200 200 200 200 200 200 200 220 220 220 255 Shots Fired 11196 | . 158 101 445 118 175 171 364 709 . 24 659 151 78 24 194 378 39 443 48 97 . 179 874 109 30 238 58 844 435 822 870 531 889 941 Gun 11054 | . 91 101 436 118 162 129 364 708 . 24 659 151 78 24 194 377 39 443 48 97 . 179 874 109 30 236 58 844 435 821 870 530 886 939 Cannon 75 | . 67 . . . . . . . . . . . . . . . . . . . . . . . . 2 . . . 1 . . 3 2 Launcher 15 | . . . 9 . 6 . . . . . . . . . . . . . . . . . . . . . . . . . . . . . Special 52 | . . . . . 7 42 . 1 . . . . . . . 1 . . . . . . . . . . . . . . . 1 . . Kinetic 11100 | . 139 99 436 118 162 129 364 708 . 24 659 151 78 24 194 377 39 443 48 97 . 179 874 109 30 236 58 844 435 821 870 530 886 939 Thermal 61 | . 4 . . . 7 42 . . . . . . . . . . . . . . . . . . . 2 . . . 1 . . 3 2 Explosive 15 | . . . 9 . 6 . . . . . . . . . . . . . . . . . . . . . . . . . . . . . Electromagnetic 17 | . 15 2 . . . . . . . . . . . . . . . . . . . . . . . . . . . . . . . . Robot Hit Streak 87 | . 12 8 27 10 20 14 18 25 . 10 43 13 14 15 18 28 25 29 11 35 . 51 54 15 7 25 41 75 68 67 64 70 87 75 Robot Miss Streak 8 | . 6 3 4 2 2 2 3 3 . 1 6 4 3 1 3 3 . 2 1 1 . 2 4 3 1 2 1 2 1 2 3 2 5 8 Penetration Max 2 | . . . . . 1 1 2 2 . . 2 1 1 1 2 2 . 1 1 1 . 1 2 1 2 1 1 2 2 2 2 2 2 2 Secondary Targets 636 | . . 1 13 6 . . 8 26 . . 28 5 . . 5 14 . 28 1 2 . 6 38 4 3 12 . 51 50 66 71 46 61 91 Max Gunslinging Chain 4 | . . 1 2 2 . . 1 2 . . 2 1 . . 2 2 . 2 1 1 . 2 2 3 2 2 . 2 3 3 4 3 3 3 Shots Hit Robots 7390 | . 80 46 233 51 128 104 188 462 . 19 498 97 56 15 94 225 23 268 26 53 . 104 567 47 12 140 44 568 347 604 589 350 615 737 Core Hits 5253 | . 34 19 114 25 48 38 110 320 . 11 288 51 26 6 65 140 8 168 8 26 . 54 367 28 20 79 21 364 317 395 470 339 503 791 Critical Kills 1405 | . . . 1 . 5 5 20 72 . 4 61 8 3 3 20 35 4 55 3 11 . 13 110 10 8 23 6 132 108 140 131 105 145 164 Critical Parts Destroyed 1578 | . 1 . 1 . 15 7 26 68 . 1 68 13 6 2 13 35 2 51 2 7 . 18 134 14 2 22 4 136 132 152 151 145 163 187 Critical Strikes 3207 | . 1 . 2 . 20 22 47 146 . 7 130 23 10 6 33 73 9 111 5 18 . 32 261 24 10 53 10 281 247 331 293 254 341 407 Destroy 3204 | . 1 . 2 . 20 19 47 146 . 7 130 23 10 6 33 73 9 111 5 18 . 32 261 24 10 53 10 281 247 331 293 254 341 407 Sever 3 | . . . . . . 3 . . . . . . . . . . . . . . . . . . . . . . . . . . . . Melee Attacks . | . . . . . . . . . . . . . . . . . . . . . . . . . . . . . . . . . . . Impact . | . . . . . . . . . . . . . . . . . . . . . . . . . . . . . . . . . . . Slashing . | . . . . . . . . . . . . . . . . . . . . . . . . . . . . . . . . . . . Piercing . | . . . . . . . . . . . . . . . . . . . . . . . . . . . . . . . . . . . Sneak Attacks . | . . . . . . . . . . . . . . . . . . . . . . . . . . . . . . . . . . . Combat Hostiles . | . . . . . . . . . . . . . . . . . . . . . . . . . . . . . . . . . . . Follow-up Attacks . | . . . . . . . . . . . . . . . . . . . . . . . . . . . . . . . . . . . Damage Inflicted 247476 | . 1400 1076 5124 1017 2610 1668 4537 13335 . 306 11807 2357 1545 372 4154 7782 605 7320 381 1127 . 2459 18609 1378 783 4337 874 17486 19741 23668 21487 16707 22985 28439 Guns 237657 | . 580 734 3720 827 2126 1308 4417 12405 . 306 11774 2320 1545 372 3759 6921 605 7226 381 1127 . 2459 18147 1378 783 4337 874 17408 16787 23544 21444 16679 22958 28406 Cannons 674 | . 674 . . . . . . . . . . . . . . . . . . . . . . . . . . . . . . . . . Explosions 8120 | . 135 296 1386 130 417 79 105 821 . . . . . . 378 788 . 94 . . . . 429 . . . . . 2938 124 . . . . Melee . | . . . . . . . . . . . . . . . . . . . . . . . . . . . . . . . . . . . Ramming 681 | . 11 46 18 60 . 4 15 109 . . 33 37 . . 17 73 . . . . . . 33 . . . . 78 16 . 43 28 27 33 Kinetic 238331 | . 1254 734 3720 827 2126 1308 4417 12405 . 306 11774 2320 1545 372 3759 6921 605 7226 381 1127 . 2459 18147 1378 783 4337 874 17408 16787 23544 21444 16679 22958 28406 Thermal 2997 | . . 296 . 130 67 356 83 821 . . . . . . 77 662 . 94 . . . . 411 . . . . . . . . . . . Explosive 5126 | . 135 . 1386 . 417 . . . . . . . . . . 126 . . . . . . . . . . . . 2938 124 . . . . Electromagnetic 341 | . . . . . . . 22 . . . . . . . 301 . . . . . . . 18 . . . . . . . . . . . Impact . | . . . . . . . . . . . . . . . . . . . . . . . . . . . . . . . . . . . Slashing . | . . . . . . . . . . . . . . . . . . . . . . . . . . . . . . . . . . . Piercing . | . . . . . . . . . . . . . . . . . . . . . . . . . . . . . . . . . . . Highest Corruption 13 | . . . 5 5 5 5 . 7 . . 2 2 10 10 1 3 3 8 8 8 8 8 2 2 2 3 3 10 13 13 . . . . Average Corruption 4 | . . . 3 5 5 5 . 4 . . 1 1 9 6 1 1 3 3 8 8 8 8 1 2 2 2 3 4 11 7 . . . . Corruption Purged 12 | . . . . . . . . . . . . 2 . 10 . . . . . . . . . . . . . . . . . . . . Corruption Blocked 32 | . . . . . . . . . . . . . . . . . . . . . . . . . . . . . . . 32 . . . Effects 699 | . . . 41 27 31 25 . 108 . . 17 6 16 12 1 12 9 59 16 21 6 20 26 8 5 4 9 89 84 47 . . . . Message Errors 183 | . . . 8 7 9 5 . 37 . . 1 1 4 4 1 4 1 18 5 2 4 6 4 1 . 1 2 23 26 9 . . . . Matter Fused 153 | . . . 11 4 9 4 . 25 . . 3 2 2 3 . 1 2 15 4 6 1 4 9 2 2 1 2 14 17 10 . . . . Heat Flow Errors 65 | . . . 5 2 2 1 . 9 . . 3 1 . 1 . 1 2 6 3 1 . 1 3 . . . . 8 9 7 . . . . Energy Discharges 72 | . . . 7 2 3 4 . 10 . . 2 . 1 . . . 2 5 2 6 . 2 3 1 1 . 1 10 8 2 . . . . Parts Rejected 5 | . . . . 1 1 1 . . . . . . 1 . . . . . . . . 1 . . . . . . . . . . . . Data Loss (minor) 81 | . . . 4 7 2 3 . 8 . . 3 1 3 2 . 1 1 6 . 3 1 3 4 1 1 1 2 16 4 4 . . . . Data Loss (major) 35 | . . . . 3 2 1 . 6 . . 1 . 5 1 . 1 . 1 . . . . 1 1 1 . 2 3 2 4 . . . . Misfires 36 | . . . 1 1 1 4 . 4 . . 2 1 . . . 1 1 2 1 1 . 1 1 1 . . . 6 4 3 . . . . Alerts 16 | . . . 1 . 1 1 . 3 . . 1 . . 1 . 1 . 1 . . . . . . . . . 3 2 1 . . . . Misdirections 1 | . . . . . . . . . . . . . . . . . . . . . . . . . . . . . 1 . . . . . Weapon Failures 52 | . . . 4 . 1 1 . 6 . . 1 . . . . 2 . 5 1 2 . 2 1 1 . 1 . 6 11 7 . . . . Overload Shots . | . . . . . . . . . . . . . . . . . . . . . . . . . . . . . . . . . . . Overflow Damage 738 | . 5 . 1 . 23 . 43 105 . . . . . . 41 122 . . . . . . 141 . . . . . 235 . 9 13 . . Projectiles 5 | . 5 . . . . . . . . . . . . . . . . . . . . . . . . . . . . . . . . . Explosions 690 | . . . 1 . 23 . 43 105 . . . . . . 41 101 . . . . . . 141 . . . . . 235 . . . . . Melee 43 | . . . . . . . . . . . . . . . . 21 . . . . . . . . . . . . . . 9 13 . . Knockbacks 11 | . 6 1 . . . . . 1 . . 1 . . . . . . . . . . . . . . . . 1 . . . . 1 . Impact 5 | . . 1 . . . . . 1 . . 1 . . . . . . . . . . . . . . . . 1 . . . . 1 . Kinetic 6 | . 6 . . . . . . . . . . . . . . . . . . . . . . . . . . . . . . . . . Secondary . | . . . . . . . . . . . . . . . . . . . . . . . . . . . . . . . . . . . Self-Inflicted Damage 560 | . 112 24 31 . . . . . . . . . . . 96 297 . . . . . . . . . . . . . . . . . . Shots 9 | . 1 1 1 . . . . . . . . . . . 1 5 . . . . . . . . . . . . . . . . . . Rammed 56 | . 3 5 6 5 . 1 3 9 . . 1 2 . . 1 2 . 1 . . . . 3 . . . . 6 2 . 2 1 1 2 Targets Rammed 60 | . 3 5 6 6 . 1 3 10 . . 1 2 . . 2 2 . 1 . . . . 4 . . . . 6 2 . 2 1 1 2 Kicked . | . . . . . . . . . . . . . . . . . . . . . . . . . . . . . . . . . . . Crushed 4 | . . . . 1 . . . 1 . . . . . . 1 . . . . . . . 1 . . . . . . . . . . . Highest Temperature 348 | . 24 21 179 178 141 127 348 233 . . 135 219 108 186 198 200 219 233 195 182 . 72 117 . . 18 . 240 235 147 32 147 147 147 Average Temperature 45 | . 13 8 13 32 24 39 82 77 . . 9 34 39 51 58 54 46 37 34 20 . 17 18 . . 13 . 94 85 76 11 39 61 64 Received Heat Transfer 3511 | . 252 177 324 16 . 18 327 282 . . 470 57 . 8 . 96 . 26 . 6 . 17 145 17 4 17 4 139 108 80 271 91 44 515 Effects 1 | . . . . . . . 1 . . . . . . . . . . . . . . . . . . . . . . . . . . . Energy Bleed 1 | . . . . . . . 1 . . . . . . . . . . . . . . . . . . . . . . . . . . . Siege Activations 205 | . . . . . . . . . . . 17 3 . . 5 11 . 8 4 5 . 6 23 4 2 5 3 32 9 14 21 6 9 18 Total Turns 9593 | . . . . . . . . . . . 463 27 . . 123 121 . 1044 41 64 . 86 642 41 6 105 25 2722 604 448 340 560 798 1333 Longest Duration 594 | . . . . . . . . . . . 69 15 . . 68 30 . 381 21 25 . 32 254 20 4 30 13 534 154 68 41 277 594 414 Robots Corrupted . | . . . . . . . . . . . . . . . . . . . . . . . . . . . . . . . . . . . Combat Hostiles . | . . . . . . . . . . . . . . . . . . . . . . . . . . . . . . . . . . . Parts Fried 1 | . . . . . . . . . . . . . . . . . . . . . . . . . . . . . . . 1 . . . Impact Corruptions 3 | . . . . . . . . . . . . . . . . 1 . . . . . . . . . . . . . . 1 1 . . Robots Melted . | . . . . . . . . . . . . . . . . . . . . . . . . . . . . . . . . . . . Combat Hostiles . | . . . . . . . . . . . . . . . . . . . . . . . . . . . . . . . . . . . Parts Melted 7 | . . 1 . . . . . 1 . . . . . . 1 1 . 1 . . . . . . . . . . . . 2 . . . Heat Transferred 2683 | . . 400 . 150 54 379 50 600 . . . . . . 100 600 . 100 . . . . 250 . . . . . . . . . . . Parts Sabotaged 11 | . . . . . . . . . . . . . . . . . . . . . . . . . . . . 3 . . 3 . . 5 Parts Stolen . | . . . . . . . . . . . . . . . . . . . . . . . . . . . . . . . . . . . Parts Stripped . | . . . . . . . . . . . . . . . . . . . . . . . . . . . . . . . . . . . Power Chain Reactions 2 | . . . . . . . . . . . . . . . 2 . . . . . . . . . . . . . . . . . . . Missiles Intercepted . | . . . . . . . . . . . . . . . . . . . . . . . . . . . . . . . . . . . Alert | -11 -10 -10 -9 -9 -9 -8 -8 -7 -6 -6 -6 -6 -6 -6 -6 -5 -5 -5 -5 -5 -5 -4 -4 -4 -4 -4 -3 -3 -3 -3 -2 -2 -1 -1 ------- Run | Scr Mat Min Mat Min Exi Min Mat Fac Fac Was Fac Ext Cet Arc Hub Fac Was Fac Upp Upp Zhi Pro Fac Upp Upp War Pro Res Qua Sec Res Tes Acc Com Peak Influence 12058 | . 523 597 1735 992 . 251 1058 3520 1724 603 2748 1455 1234 655 2169 2450 883 5771 . . . . 3810 . . . . 3097 5521 7887 9692 9215 10334 12058 Initial 6613 | . . 191 229 676 . . 97 366 1724 603 282 1346 676 415 228 1062 857 478 . . . . 338 . . . . 13 1741 3105 4436 5451 5528 6613 Average 3135 | . 280 480 1078 855 . 88 659 1811 1724 534 1126 1037 939 628 1365 1521 868 2197 . . . . 1472 . . . . 1408 4303 6290 6939 7888 8784 9828 Maximum Alert Level 5 | . 2 2 5 3 . 1 3 5 5 2 5 4 4 2 5 5 3 5 . . . . 5 . . . . 5 5 5 5 5 5 5 Low Security (%) 5 | 100 36 7 . . . 90 1 . . . . . . . . . . . . . . . 3 . . . . 6 . . . . . . Level 1 5 | . 28 16 5 . . 9 9 7 . . 8 . . . 13 . . 15 . . . . 8 . . . . 3 . . . . . . Level 2 13 | . 34 76 19 15 . . 43 10 . 100 27 . 4 100 5 . 2 16 . . . . 14 . . . . 9 . . . . . . Level 3 12 | . . . 21 84 . . 45 12 . . 21 57 81 . 16 14 97 8 . . . . 7 . . . . 5 . . . . . . Level 4 14 | . . . 44 . . . . 29 . . 20 42 13 . 15 48 . 5 . . . . 28 . . . . 34 . . . . . . Level 5 10 | . . . 9 . . . . 4 100 . 7 . . . 48 37 . 16 . . . . 18 . . . . 32 6 13 4 3 5 4 High Security 36 | . . . . . . . . 35 . . 14 . . . . . . 36 . . . . 19 . . . . 7 93 86 95 96 94 95 Max Security . | . . . . . . . . . . . . . . . . . . . . . . . . . . . . . . . . . . . Sterilizations 10 | . . . 1 . . . . 1 . . . . . . . . . 1 . . . . 1 . . . . 1 1 1 1 1 1 . Squads Dispatched 402 | . 6 . 10 2 . 1 9 34 1 . 33 4 . . 12 14 . 34 . . . 1 37 . . . . 31 32 39 1 33 32 36 Investigation 25 | . 4 . 4 2 . . 2 4 1 . 4 1 . . 1 . . 2 . . . . . . . . . . . . . . . . Extermination 25 | . . . . . . . . 5 . . 2 . . . 1 2 . 1 . . . . 5 . . . . 8 . 1 . . . . Reinforcement 46 | . 2 . 2 . . 1 3 3 . . 6 1 . . 8 2 . 3 . . . . 7 . . . . 3 . 3 1 1 . . Assault 289 | . . . 4 . . . 4 21 . . 14 2 . . 2 7 . 27 . . . 1 21 . . . . 20 32 34 . 32 32 36 Garrison 17 | . . . . . . . . 1 . . 7 . . . . 3 . 1 . . . . 4 . . . . . . 1 . . . . Intercept . | . . . . . . . . . . . . . . . . . . . . . . . . . . . . . . . . . . . Searches Triggered . | . . . . . . . . . . . . . . . . . . . . . . . . . . . . . . . . . . . Construction Impeded 15 | . . . . . . 1 1 2 . . 1 . . . 3 . . 3 . . . . 4 . . . . . . . . . . . Haulers Reinforced 3 | . . . . . . . . . . . 2 . . . . . . . . . . . . . . . . 1 . . . . . . Active Scanning Responses . | . . . . . . . . . . . . . . . . . . . . . . . . . . . . . . . . . . . Cargo Convoy Interrupts 3 | . . . . . . . . . . . 1 . . . . 1 . . . . . . . . . . . 1 . . . . . . Stealth | -11 -10 -10 -9 -9 -9 -8 -8 -7 -6 -6 -6 -6 -6 -6 -6 -5 -5 -5 -5 -5 -5 -4 -4 -4 -4 -4 -3 -3 -3 -3 -2 -2 -1 -1 --------- Run | Scr Mat Min Mat Min Exi Min Mat Fac Fac Was Fac Ext Cet Arc Hub Fac Was Fac Upp Upp Zhi Pro Fac Upp Upp War Pro Res Qua Sec Res Tes Acc Com Distress Signals 36 | . 2 . 2 1 . . 1 1 . . 4 . 3 . 3 . . 2 . . . . 3 . . . . 1 . 3 6 1 1 2 Communications Jammed . | . . . . . . . . . . . . . . . . . . . . . . . . . . . . . . . . . . . Distress Signals . | . . . . . . . . . . . . . . . . . . . . . . . . . . . . . . . . . . . Times Spotted 2537 | . 26 13 65 18 20 8 63 175 . . 126 36 12 11 41 65 . 115 3 9 . 21 162 12 7 41 9 170 180 228 231 178 205 287 Peak Tracking Total 57 | . 4 3 6 4 9 4 9 13 . . 15 9 5 2 8 11 . 20 4 4 . 9 10 5 4 12 4 13 16 29 28 14 15 57 Tactical Retreats 104 | . 2 1 . 2 1 1 3 5 . . 3 1 . . 1 1 . 3 . . . 2 2 . . 2 . 2 1 17 22 10 19 3 Traps | -11 -10 -10 -9 -9 -9 -8 -8 -7 -6 -6 -6 -6 -6 -6 -6 -5 -5 -5 -5 -5 -5 -4 -4 -4 -4 -4 -3 -3 -3 -3 -2 -2 -1 -1 ------- Run | Scr Mat Min Mat Min Exi Min Mat Fac Fac Was Fac Ext Cet Arc Hub Fac Was Fac Upp Upp Zhi Pro Fac Upp Upp War Pro Res Qua Sec Res Tes Acc Com Traps Triggered 13 | . 1 . 1 . . . 2 1 1 . 2 . . . 1 2 . . . . . . 1 . . . . . . . . 1 . . Indirectly . | . . . . . . . . . . . . . . . . . . . . . . . . . . . . . . . . . . . Trap Hack Attempts . | . . . . . . . . . . . . . . . . . . . . . . . . . . . . . . . . . . . Triggered . | . . . . . . . . . . . . . . . . . . . . . . . . . . . . . . . . . . . Disarmed 4 | . . . . . . . . . . . . 4 . . . . . . . . . . . . . . . . . . . . . . Reprogrammed . | . . . . . . . . . . . . . . . . . . . . . . . . . . . . . . . . . . . Reused . | . . . . . . . . . . . . . . . . . . . . . . . . . . . . . . . . . . . Traps Extracted . | . . . . . . . . . . . . . . . . . . . . . . . . . . . . . . . . . . . Installed . | . . . . . . . . . . . . . . . . . . . . . . . . . . . . . . . . . . . Triggered 13 | . . . . . . . . . . . . . . . . . . . . . . 1 . . 1 11 . . . . . . . . Machines | -11 -10 -10 -9 -9 -9 -8 -8 -7 -6 -6 -6 -6 -6 -6 -6 -5 -5 -5 -5 -5 -5 -4 -4 -4 -4 -4 -3 -3 -3 -3 -2 -2 -1 -1 ---------- Run | Scr Mat Min Mat Min Exi Min Mat Fac Fac Was Fac Ext Cet Arc Hub Fac Was Fac Upp Upp Zhi Pro Fac Upp Upp War Pro Res Qua Sec Res Tes Acc Com Machines Disabled 243 | . 11 11 16 7 14 13 17 16 . . 12 . 1 3 13 13 . 15 . . . 1 40 2 1 1 . 2 11 11 2 6 3 1 Max in Single Turn 8 | . 1 8 2 2 2 3 2 7 . . 2 . . 1 3 5 . 7 . . . 1 8 1 . 1 . 1 3 2 1 1 1 1 Garrison Access 10 | . . . . . . . . 2 . . . . . . . 1 . 2 . . . . 1 . . . . . 1 1 . 1 1 . Network Hub 1 | . . . . . . . . . . . . . . . 1 . . . . . . . . . . . . . . . . . . . Energy Cycler 1 | . . . . . . . . . . . . . . . . . . . . . . . . . . . . . . . . . 1 . Machines Sabotaged . | . . . . . . . . . . . . . . . . . . . . . . . . . . . . . . . . . . . Overloaded Fab Kills . | . . . . . . . . . . . . . . . . . . . . . . . . . . . . . . . . . . . Hacking | -11 -10 -10 -9 -9 -9 -8 -8 -7 -6 -6 -6 -6 -6 -6 -6 -5 -5 -5 -5 -5 -5 -4 -4 -4 -4 -4 -3 -3 -3 -3 -2 -2 -1 -1 --------- Run | Scr Mat Min Mat Min Exi Min Mat Fac Fac Was Fac Ext Cet Arc Hub Fac Was Fac Upp Upp Zhi Pro Fac Upp Upp War Pro Res Qua Sec Res Tes Acc Com Machines Accessed 85 | . 8 . 9 2 2 . 8 8 2 . 4 9 . . 2 4 . 7 . . 4 . 5 . . 1 . 4 1 2 2 1 . . Terminals 62 | . 6 . 8 1 . . 8 4 2 . 3 9 . . 2 4 . 2 . . . . 4 . . . . 4 . 2 2 1 . . Fabricators 4 | . . . . . . . . 2 . . . . . . . . . 2 . . . . . . . . . . . . . . . . Repair Stations 2 | . . . . . . . . . . . 1 . . . . . . 1 . . . . . . . . . . . . . . . . Recycling Units 4 | . 2 . 1 . . . . 1 . . . . . . . . . . . . . . . . . . . . . . . . . . Scanalyzers 1 | . . . . . . . . . . . . . . . . . . 1 . . . . . . . . . . . . . . . . Garrison Access 4 | . . . . . . . . 1 . . . . . . . . . 1 . . . . 1 . . . . . 1 . . . . . Total Hacks 378 | . 24 . 31 4 5 . 36 31 7 . 20 39 . . 7 27 . 41 . . 17 . 33 . . 4 . 19 3 12 7 11 . . Successful 217 | . 16 . 18 3 5 . 19 15 3 . 10 24 . . 2 9 . 23 . . 17 . 21 . . 4 . 11 1 6 5 5 . . Failed 158 | . 8 . 12 1 . . 17 16 4 . 10 15 . . 5 18 . 18 . . . . 11 . . . . 7 2 6 2 6 . . Catastrophic 13 | . . . . 1 . . 1 1 . . 1 2 . . . 2 . 1 . . . . 1 . . . . . . 2 . 1 . . Database Lockouts 3 | . . . 1 . . . . . . . . . . . . . . . . . . . 1 . . . . 1 . . . . . . Manual 222 | . 18 . 22 3 1 . 33 16 2 . 14 19 1 . 1 20 . 20 . . . . 25 . . . . 14 . 3 2 8 . . Terminals 304 | . 22 . 30 3 . . 36 19 7 . 16 39 . . 7 27 . 17 . . . . 32 . . . . 19 . 12 7 11 . . Fabricators 16 | . . . . . . . . 7 . . . . . . . . . 9 . . . . . . . . . . . . . . . . Repair Stations 12 | . . . . . . . . . . . 4 . . . . . . 8 . . . . . . . . . . . . . . . . Recycling Units 5 | . 2 . 1 . . . . 2 . . . . . . . . . . . . . . . . . . . . . . . . . . Scanalyzers 3 | . . . . . . . . . . . . . . . . . . 3 . . . . . . . . . . . . . . . . Garrison Access 11 | . . . . . . . . 3 . . . . . . . . . 4 . . . . 1 . . . . . 3 . . . . . Terminal Hacks 151 | . 9 . 13 3 5 . 12 7 2 . 7 20 . . 1 7 . 8 . . 17 . 16 . . 4 . 8 . 5 3 4 . . Record 9 | . . . . . 4 . . . . . . . . . . . . . . . 5 . . . . . . . . . . . . . Part Schematic 10 | . . . . . . . 1 1 . . . 2 . . . 1 . . . . 4 . . . . . . . . 1 . . . . Robot Schematic 1 | . . . . . . . . . . . . . . . . 1 . . . . . . . . . . . . . . . . . . Robot Analysis 16 | . 3 . 1 . . . 2 . . . 1 2 . . . . . . . . 4 . 2 . . . . 1 . . . . . . Prototype ID Bank 16 | . 2 . 4 . . . . . . . . 2 . . . . . . . . 4 . . . . 4 . . . . . . . . Open Door 4 | . . . . 1 . . . . . . 1 2 . . . . . . . . . . . . . . . . . . . . . . Level Access Points 1 | . . . . . . . . . . . . . . . . . . . . . . . . . . . . . . 1 . . . . Branch Access Points 8 | . . . 1 . . . . . 1 . 1 . . . . 1 . 1 . . . . 1 . . . . 1 . . 1 . . . Machine Index 2 | . . . . . . . . 1 . . . . . . . . . . . . . . . . . . . . . . 1 . . . Terminal Index 6 | . 1 . . . . . . . . . . . . . . 1 . 1 . . . . 1 . . . . 1 . . . 1 . . Fabricator Index 1 | . . . . . . . . . . . . . . . . . . 1 . . . . . . . . . . . . . . . . Scanalyzer Index 1 | . . . . . . . . . . . . . . . . . . 1 . . . . . . . . . . . . . . . . Garrison Index 1 | . . . . . . . . . . . . . . . . . . . . . . . . . . . . . . . . 1 . . Alert Level 29 | . 1 . 3 1 . . 4 3 1 . 3 3 . . 1 1 . 2 . . . . 3 . . . . 1 . 1 1 . . . Unreport Threat 19 | . . . . . . . 3 1 . . . 6 . . . 1 . 2 . . . . 5 . . . . . . 1 . . . . Locate Traps 3 | . . . . . . . . . . . . . . . . 1 . . . . . . 1 . . . . . . . . 1 . . Disarm Traps 1 | . . . . . . . . . . . . 1 . . . . . . . . . . . . . . . . . . . . . . Transport Status 2 | . . . 1 . . . . 1 . . . . . . . . . . . . . . . . . . . . . . . . . . Recall Reinforcements 1 | . . . . . . . . . . . . 1 . . . . . . . . . . . . . . . . . . . . . . Hauler Manifests 4 | . . . 1 . . . . . . . . 1 . . . . . . . . . . 1 . . . . 1 . . . . . . Zone Layout 15 | . 2 . 2 1 . . 2 . . . 1 . . . . . . . . . . . 2 . . . . 3 . 1 . 1 . . EX-Prototype ID Bank 1 | . . . . . 1 . . . . . . . . . . . . . . . . . . . . . . . . . . . . . Fabricator Hacks 6 | . . . . . . . . 2 . . . . . . . . . 4 . . . . . . . . . . . . . . . . Load Schematic 3 | . . . . . . . . 1 . . . . . . . . . 2 . . . . . . . . . . . . . . . . Build 3 | . . . . . . . . 1 . . . . . . . . . 2 . . . . . . . . . . . . . . . . Repair Station Hacks 4 | . . . . . . . . . . . 1 . . . . . . 3 . . . . . . . . . . . . . . . . Scan Component 3 | . . . . . . . . . . . 1 . . . . . . 2 . . . . . . . . . . . . . . . . Repair 1 | . . . . . . . . . . . . . . . . . . 1 . . . . . . . . . . . . . . . . Recycling Unit Hacks 2 | . . . . . . . . 2 . . . . . . . . . . . . . . . . . . . . . . . . . . Retrieve Components 2 | . . . . . . . . 2 . . . . . . . . . . . . . . . . . . . . . . . . . . Scanalyzer 2 | . . . . . . . . . . . . . . . . . . 2 . . . . . . . . . . . . . . . . Insert Component 1 | . . . . . . . . . . . . . . . . . . 1 . . . . . . . . . . . . . . . . Analyze 1 | . . . . . . . . . . . . . . . . . . 1 . . . . . . . . . . . . . . . . Garrison Access Hacks 3 | . . . . . . . . . . . . . . . . . . 1 . . . . 1 . . . . . 1 . . . . . Seal Access 3 | . . . . . . . . . . . . . . . . . . 1 . . . . 1 . . . . . 1 . . . . . Unauthorized Hacks 49 | . 7 . 5 . . . 7 4 1 . 2 4 . . 1 2 . 5 . . . . 4 . . . . 3 . 1 2 1 . . Terminals 42 | . 5 . 4 . . . 7 3 1 . 2 4 . . 1 2 . 2 . . . . 4 . . . . 3 . 1 2 1 . . Track 1 | . . . . . . . . . . . . . . . . . . . . . . . 1 . . . . . . . . . . . Assimilate 3 | . . . . . . . . . . . . . . . . . . . . . . . 1 . . . . 2 . . . . . . Botnet 37 | . 5 . 4 . . . 7 2 1 . 2 4 . . 1 2 . 2 . . . . 2 . . . . 1 . 1 2 1 . . Operators 1 | . . . . . . . . 1 . . . . . . . . . . . . . . . . . . . . . . . . . . Fabricators 4 | . . . . . . . . 1 . . . . . . . . . 3 . . . . . . . . . . . . . . . . Prioritize 2 | . . . . . . . . . . . . . . . . . . 2 . . . . . . . . . . . . . . . . Haulers 2 | . . . . . . . . 1 . . . . . . . . . 1 . . . . . . . . . . . . . . . . Repair Stations . | . . . . . . . . . . . . . . . . . . . . . . . . . . . . . . . . . . . Recycling Units 3 | . 2 . 1 . . . . . . . . . . . . . . . . . . . . . . . . . . . . . . . Tunnel 3 | . 2 . 1 . . . . . . . . . . . . . . . . . . . . . . . . . . . . . . . Scanalyzers . | . . . . . . . . . . . . . . . . . . . . . . . . . . . . . . . . . . . Garrison Access . | . . . . . . . . . . . . . . . . . . . . . . . . . . . . . . . . . . . Data Cores Recovered 2 | . . . . . . . . 1 . . . 1 . . . . . . . . . . . . . . . . . . . . . . Used . | . . . . . . . . . . . . . . . . . . . . . . . . . . . . . . . . . . . Hacking Detections 63 | . 6 . 8 1 . . 8 7 1 . 3 7 . . 2 4 . 6 . . . . 3 . . . . 3 . 2 1 1 . . Full Trace Events 18 | . 1 . 4 1 . . . 4 1 . 3 1 . . 1 . . 2 . . . . . . . . . . . . . . . . Feedback Events 1 | . . . . . . . . 1 . . . . . . . . . . . . . . . . . . . . . . . . . . Corruption 1 | . . . . . . . . 1 . . . . . . . . . . . . . . . . . . . . . . . . . . Feedback Blocked . | . . . . . . . . . . . . . . . . . . . . . . . . . . . . . . . . . . . Robot Schematics Acquired 2 | . . . . . . . . . . . . . . . . 1 . . . . . . . . . . . . . 1 . . . . Robots Built . | . . . . . . . . . . . . . . . . . . . . . . . . . . . . . . . . . . . Authchips . | . . . . . . . . . . . . . . . . . . . . . . . . . . . . . . . . . . . Time . | . . . . . . . . . . . . . . . . . . . . . . . . . . . . . . . . . . . Total Robot Build Rating . | . . . . . . . . . . . . . . . . . . . . . . . . . . . . . . . . . . . Part Schematics Acquired 17 | . . . . . . . 1 1 . . . 2 . . . 1 . 1 . . 4 . . . . . . . 5 2 . . . . Parts Built 6 | . . . . . . . . 2 . . . . . . . . . 4 . . . . . . . . . . . . . . . . Authchips . | . . . . . . . . . . . . . . . . . . . . . . . . . . . . . . . . . . . Time 160 | . . . . . . . . 73 . . . . . . . . . 87 . . . . . . . . . . . . . . . . Total Part Build Rating 34 | . . . . . . . . 6 . . . . . . . . . 28 . . . . . . . . . . . . . . . . Parts Repaired 1 | . . . . . . . . . . . . . . . . . . 1 . . . . . . . . . . . . . . . . Time 68 | . . . . . . . . . . . . . . . . . . 68 . . . . . . . . . . . . . . . . Parts Recycled . | . . . . . . . . . . . . . . . . . . . . . . . . . . . . . . . . . . . Recycled Matter . | . . . . . . . . . . . . . . . . . . . . . . . . . . . . . . . . . . . Retrieved Matter . | . . . . . . . . . . . . . . . . . . . . . . . . . . . . . . . . . . . Retrieved Components 9 | . . . . . . . . 9 . . . . . . . . . . . . . . . . . . . . . . . . . . Parts Scanalyzed 1 | . . . . . . . . . . . . . . . . . . 1 . . . . . . . . . . . . . . . . Part Schematics Acquired 1 | . . . . . . . . . . . . . . . . . . 1 . . . . . . . . . . . . . . . . Parts Damaged . | . . . . . . . . . . . . . . . . . . . . . . . . . . . . . . . . . . . Bothacking | -11 -10 -10 -9 -9 -9 -8 -8 -7 -6 -6 -6 -6 -6 -6 -6 -5 -5 -5 -5 -5 -5 -4 -4 -4 -4 -4 -3 -3 -3 -3 -2 -2 -1 -1 ------------ Run | Scr Mat Min Mat Min Exi Min Mat Fac Fac Was Fac Ext Cet Arc Hub Fac Was Fac Upp Upp Zhi Pro Fac Upp Upp War Pro Res Qua Sec Res Tes Acc Com Used RIF Installer . | . . . . . . . . . . . . . . . . . . . . . . . . . . . . . . . . . . . Robots Hacked 3 | . . . . . . . . 1 . . . . . . . 1 . . . . . . . . . . . . . . . 1 . . Non-combat 2 | . . . . . . . . 1 . . . . . . . 1 . . . . . . . . . . . . . . . . . . Combat 1 | . . . . . . . . . . . . . . . . . . . . . . . . . . . . . . . . 1 . . Robot Hacks Applied 3 | . . . . . . . . 1 . . . . . . . 1 . . . . . . . . . . . . . . . 1 . . parse_system 1 | . . . . . . . . . . . . . . . . . . . . . . . . . . . . . . . . 1 . . find_chute 2 | . . . . . . . . 1 . . . . . . . 1 . . . . . . . . . . . . . . . . . . Relay Couplers Released 9 | . . . . . . . . 2 . . . . . . . 1 . 1 . . . . . . . . . . 1 1 2 . 1 . Machine Destruction 4 | . . . . . . . . . . . . . . . . . . 1 . . . . . . . . . . 1 1 . . 1 . Programmers 5 | . . . . . . . . 2 . . . . . . . 1 . . . . . . . . . . . . . . 2 . . . Fabnet Peak Effective % . | . . . . . . . . . . . . . . . . . . . . . . . . . . . . . . . . . . . Robots Rewired 18 | . . . . . . . . . . . . 9 . . . . . . . . . 2 . 4 . 3 . . . . . . . . Allies Hacked 4 | . . . . . . . . . . . . . . . . . . 4 . . . . . . . . . . . . . . . . Hacks Repelled . | . . . . . . . . . . . . . . . . . . . . . . . . . . . . . . . . . . . Allies | -11 -10 -10 -9 -9 -9 -8 -8 -7 -6 -6 -6 -6 -6 -6 -6 -5 -5 -5 -5 -5 -5 -4 -4 -4 -4 -4 -3 -3 -3 -3 -2 -2 -1 -1 -------- Run | Scr Mat Min Mat Min Exi Min Mat Fac Fac Was Fac Ext Cet Arc Hub Fac Was Fac Upp Upp Zhi Pro Fac Upp Upp War Pro Res Qua Sec Res Tes Acc Com Total Allies 99 | . . 1 . . . . . . . . . 11 4 . . . 20 . . . . 2 1 4 . 3 . 2 . . 20 . 3 28 Largest Group 25 | . . 1 . . . . . . . . . 10 12 6 5 1 20 19 1 1 . 2 2 4 4 4 . 1 . . 7 6 . 25 Highest-Rated Group 823 | . . 31 . . . . . . . . . 436 750 378 352 96 823 777 26 26 . 97 97 160 155 208 . 26 . . 102 86 . 349 Highest-Rated Ally 159 | . . 31 . . . . . . . . . 159 159 96 96 96 50 50 26 26 . 49 49 46 46 65 . 26 . . 15 15 . 15 Total Orders 2 | . . . . . . . . . . . . . 2 . . . . . . . . . . . . . . . . . . . . . STAY 1 | . . . . . . . . . . . . . 1 . . . . . . . . . . . . . . . . . . . . . FOLLOW 1 | . . . . . . . . . . . . . 1 . . . . . . . . . . . . . . . . . . . . . Ally Attacks 862 | . . 9 . . . . . . . . . 120 76 12 69 1 6 351 . . . 5 2 2 12 12 . . . . 37 33 . 115 Total Damage 25169 | . . 125 . . . . . . . . . 2642 2353 439 2986 48 301 12311 . . . 172 85 14 299 372 . . . . 645 482 . 1895 Kills 152 | . . 3 . . . . . . . . . 22 14 4 21 . . 72 . . . . 1 . 2 2 . . . . 2 4 . 5 Allies Corrupted 3 | . . . . . . . . . . . . . . 1 . . . 2 . . . . . . . . . . . . . . . . Allies Melted 1 | . . . . . . . . . . . . . . . . . . . . . . . . . 1 . . . . . . . . . Intel | -11 -10 -10 -9 -9 -9 -8 -8 -7 -6 -6 -6 -6 -6 -6 -6 -5 -5 -5 -5 -5 -5 -4 -4 -4 -4 -4 -3 -3 -3 -3 -2 -2 -1 -1 ------- Run | Scr Mat Min Mat Min Exi Min Mat Fac Fac Was Fac Ext Cet Arc Hub Fac Was Fac Upp Upp Zhi Pro Fac Upp Upp War Pro Res Qua Sec Res Tes Acc Com Robot Analysis Total 16 | . 3 . 1 . . . 2 . . . 1 2 . . . . . . . . 4 . 2 . . . . 1 . . . . . . Derelict Logs Recovered 5 | . . 2 . . . . . . . . . . . . . . . . . . . 1 . 2 . . . . . . . . . . Drone Launches . | . . . . . . . . . . . . . . . . . . . . . . . . . . . . . . . . . . . Drone Recoveries . | . . . . . . . . . . . . . . . . . . . . . . . . . . . . . . . . . . . Exploration | -11 -10 -10 -9 -9 -9 -8 -8 -7 -6 -6 -6 -6 -6 -6 -6 -5 -5 -5 -5 -5 -5 -4 -4 -4 -4 -4 -3 -3 -3 -3 -2 -2 -1 -1 ------------- Run | Scr Mat Min Mat Min Exi Min Mat Fac Fac Was Fac Ext Cet Arc Hub Fac Was Fac Upp Upp Zhi Pro Fac Upp Upp War Pro Res Qua Sec Res Tes Acc Com Turns Passed 52837 | 83 1910 1174 2297 1055 1173 1088 2120 4547 181 606 1705 1360 535 384 577 1355 410 2587 424 609 317 692 2863 935 380 1641 852 4972 2250 2384 2109 1747 2583 2932 Spaces Moved 19693 | 52 924 622 762 548 584 550 1055 2132 121 339 534 674 195 47 178 584 223 746 186 265 161 279 937 434 188 761 416 868 783 852 662 570 832 629 Core 7 | 7 . . . . . . . . . . . . . . . . . . . . . . . . . . . . . . . . . . Treads 19678 | 45 924 622 762 548 584 550 1055 2132 121 339 534 674 195 47 178 584 223 746 186 265 161 279 937 434 188 761 416 868 783 848 662 570 832 625 Legs . | . . . . . . . . . . . . . . . . . . . . . . . . . . . . . . . . . . . Wheels . | . . . . . . . . . . . . . . . . . . . . . . . . . . . . . . . . . . . Hover . | . . . . . . . . . . . . . . . . . . . . . . . . . . . . . . . . . . . Flight . | . . . . . . . . . . . . . . . . . . . . . . . . . . . . . . . . . . . Fastest Speed 50 | 50 160 160 145 145 145 145 145 145 148 148 160 160 160 160 160 160 160 160 180 180 180 180 180 180 180 180 180 180 180 180 180 180 180 180 Average Speed 165 | 145 160 160 152 145 145 145 145 147 148 156 160 160 160 160 160 160 160 168 180 180 180 180 180 180 180 180 180 180 180 180 180 180 180 180 Slowest Speed 240 | 160 160 160 160 145 225 145 145 148 148 160 160 160 160 160 160 160 240 180 180 180 180 180 180 180 180 180 180 180 180 180 180 180 180 180 Overloaded Moves . | . . . . . . . . . . . . . . . . . . . . . . . . . . . . . . . . . . . Propulsion Burnouts . | . . . . . . . . . . . . . . . . . . . . . . . . . . . . . . . . . . . Robots Hopped 1 | . . . . . . . . . . . . . . . . . . . . . . . . . . . . . . . . . . 1 Cave-ins Triggered . | . . . . . . . . . . . . . . . . . . . . . . . . . . . . . . . . . . . Teleports 2 | . . . . . . . . . . . . . . . . . . . . . . . . . . . . . . 1 1 . . . Spacefolds 3 | . . . . . . . . . . . . . . . . . . . . . . . . . . . . . . 2 . . . 1 Exploration Rate (%) 53 | 4 99 99 64 67 90 82 85 46 4 97 12 85 56 69 25 18 88 18 42 44 60 53 23 59 33 81 54 17 94 48 30 94 21 19 Regions Visited 34 Branch Regions 20 Pre-discovered Areas 11 | . 2 1 1 1 1 . . . . . . . . . . . . . . . 3 1 . 1 . . . . . . . . . . Known Exits Taken 23 | . . . 1 . . . . 1 . . 1 1 1 1 1 . . 1 1 1 1 1 1 1 1 1 1 1 1 1 1 1 1 . Unknown Exits Taken 7 | 1 1 1 . 1 1 1 1 . . . . . . . . . . . . . . . . . . . . . . . . . . . Scrap Searched 12 | . . 2 . 2 . . . . . . . . . . . . . . 1 2 . 1 . 2 . . 2 . . . . . . . Spaces Dug 355 | . . . . . . 25 . 1 . . 3 . . . 182 11 . 26 . 2 . 2 5 10 1 43 . . . 13 16 6 2 7 Terrain Destroyed 2285 | . 80 72 92 12 14 65 80 63 . 5 27 15 22 9 239 155 11 87 18 31 . 43 249 37 7 73 16 14 132 154 210 121 39 93 Melee . | . . . . . . . . . . . . . . . . . . . . . . . . . . . . . . . . . . . Projectile 1219 | . . . . . 7 30 39 33 . 5 5 14 22 9 67 62 11 43 18 29 . 42 95 37 7 72 16 2 73 137 194 95 7 48 AOE 904 | . 80 72 92 12 7 34 36 18 . . . . . . 172 92 . 39 . . . . 149 . . . . . 59 16 . 17 9 . Terrain Rammed . | . . . . . . . . . . . . . . . . . . . . . . . . . . . . . . . . . . . Walls Destroyed . | . . . . . . . . . . . . . . . . . . . . . . . . . . . . . . . . . . . Machines Disabled . | . . . . . . . . . . . . . . . . . . . . . . . . . . . . . . . . . . . Actions | -11 -10 -10 -9 -9 -9 -8 -8 -7 -6 -6 -6 -6 -6 -6 -6 -5 -5 -5 -5 -5 -5 -4 -4 -4 -4 -4 -3 -3 -3 -3 -2 -2 -1 -1 --------- Run | Scr Mat Min Mat Min Exi Min Mat Fac Fac Was Fac Ext Cet Arc Hub Fac Was Fac Upp Upp Zhi Pro Fac Upp Upp War Pro Res Qua Sec Res Tes Acc Com Total 35674 | 57 1204 720 1612 732 791 725 1500 3243 124 399 1118 900 384 346 401 878 263 1928 260 366 189 413 1821 553 220 942 500 3988 1474 1425 1276 1128 1650 2144 Wait 11301 | . 132 29 633 126 66 26 240 798 3 12 318 82 138 286 168 170 19 1046 61 67 . 64 662 57 28 48 61 2836 562 208 284 389 548 1134 Move 19654 | 51 923 621 761 547 583 549 1054 2131 121 338 533 673 194 46 177 584 222 745 185 264 160 278 936 433 187 760 415 867 782 849 661 569 831 624 Hop 1 | . . . . . . . . . . . . . . . . . . . . . . . . . . . . . . . . . . 1 Pick Up 131 | 1 4 1 10 1 6 . 12 7 . 1 2 . . . . . 2 2 . 3 2 4 4 1 . 3 1 11 3 15 1 5 14 15 Fast Attach 182 | 5 9 1 4 4 21 8 2 12 . 7 4 5 8 3 4 10 5 2 2 4 13 1 3 2 . 7 2 12 . 8 4 4 1 5 Attach 23 | . 1 1 . . . . 9 1 . . . . . . . . 1 1 . . . . . . . . . . 1 3 . 1 . 4 Detach 1 | . . . . . . . . . . . . . . . . . 1 . . . . . . . . . . . . . . . . . Swap 68 | . 8 2 10 1 7 4 . 4 . . 1 . . . . . . 1 . . . . 1 . . 2 . 3 1 7 3 5 3 5 Drop 269 | . 12 . 13 4 28 9 12 18 . 9 3 5 6 2 1 9 6 3 2 6 14 4 4 3 . 11 3 21 3 17 1 11 14 15 Fire 2372 | . 89 35 118 30 65 93 97 179 . 12 161 30 21 6 34 64 7 75 8 17 . 30 147 19 5 60 11 148 76 150 156 98 161 170 Melee . | . . . . . . . . . . . . . . . . . . . . . . . . . . . . . . . . . . . Ram . | . . . . . . . . . . . . . . . . . . . . . . . . . . . . . . . . . . . Kick . | . . . . . . . . . . . . . . . . . . . . . . . . . . . . . . . . . . . Crush 60 | . 3 5 6 6 . 1 3 10 . . 1 2 . . 2 2 . 1 . . . . 4 . . . . 6 2 . 2 1 1 2 Escape Stasis 8 | . . . . . . . . . . . . . . . . . . . . . . . . . . . . . 2 . . 4 . 2 Rewire 143 | . . . . . . . . . . . . 74 . . 1 . . . . . . 19 . 32 . 16 . . . . . . . 1 Trap . | . . . . . . . . . . . . . . . . . . . . . . . . . . . . . . . . . . . Miscellaneous 1461 | . 23 25 57 13 15 35 71 83 . 20 95 29 17 3 14 39 . 52 2 5 . 13 60 6 . 35 7 84 42 168 164 41 77 166 Route ------- -11/Scrapyard -10/Materials (discovered 4 exits: *Mat x3 / [*Min]) -10/Mines (discovered 2 exits: *Mat x2) -9/Materials (discovered 5 exits: *Mat x2 / *Min / *Sto x2) -9/Mines (discovered 3 exits: *Mat x2 / *Exi) -9/Exiles (discovered 2 exits: [*Min x2]) -8/Mines (discovered 2 exits: *Mat x2) -8/Materials (discovered 2 exits: *Fac x2) -7/Factory (discovered 2 exits: *Fac x2) -6/Factory (discovered 4 exits: Low x2 / Ext x2) -6/Waste -6/Factory (discovered 5 exits: *Fac / Low x2 / *Ext x2) -6/Extension (discovered 2 exits: *Fac / *Cet) -6/Cetus (discovered 2 exits: *Fac / *Arc) -6/Archives -6/Hub_04(d) (discovered 2 exits: *Fac x2) -5/Factory (discovered 3 exits: *Fac / *Upp x2) -5/Waste -5/Factory (discovered 2 exits: *Upp x2) -5/Upper Caves -5/Upper Caves -5/Zhirov -4/Proximity Caves -4/Factory (discovered 4 exits: *Res / *Upp x2 / Arm) -4/Upper Caves -4/Upper Caves -4/Warlord -3/Proximity Caves -3/Research (discovered 2 exits: *Qua x2) -3/Quarantine (discovered 2 exits: *Res / *Sec) -3/Section 7 -2/Research (discovered 3 exits: *Acc / *Tes x2) -2/Testing -1/Access -1/Command History --------- Turn | Location | Event 3 | -11/Scrapyard | Discovered new exit (range 15) 6 | -11/Scrapyard | Upgraded with Propulsion slot (x1) 6 | -11/Scrapyard | Upgraded with Utility slot (x2) 6 | -11/Scrapyard | Upgraded with Weapon slot (x1) 84 | -11/Scrapyard | Entered Materials 304 | -10/Materials | Discovered new exit (range 9) 312 | -10/Materials | Build established: Mutant 902 | -10/Materials | Discovered new exit (range 15) 916 | -10/Materials | Reached level 2 975 | -10/Materials | Upgraded with Utility slot (x1) 975 | -10/Materials | Upgraded with Weapon slot (x1) 1083 | -10/Materials | Discovered new exit (range 8) 1083 | -10/Materials | Discovered new exit (range 13) 1566 | -10/Materials | Reached level 3 1806 | -10/Materials | Build established: Tank 1868 | -10/Materials | Upgraded with Power slot (x1) 1994 | -10/Materials | Entered Mines 2037 | -10/Mines | A weapon hastily lodged in a ceiling crevice suddenly fell to the ground 2082 | -10/Mines | Reached level 4 2382 | -10/Mines | Discovered new exit (range 4) 2402 | -10/Mines | Learned location of 1 exit from Materials 2557 | -10/Mines | Received a Rocket Launcher from a helpful Derelict 2755 | -10/Mines | Received a Mining Laser from a helpful Derelict 2874 | -10/Mines | Reached level 5 3061 | -10/Mines | Discovered new exit (range 8) 3096 | -10/Mines | Joined a pair of Derelicts in attacking an 0b10 outpost 3119 | -10/Mines | Upgraded with Weapon slot (x1) 3124 | -10/Mines | Upgraded with Utility slot (x1) 3168 | -10/Mines | Entered Materials 3169 | -9/Materials | Identified exit to Storage 3170 | -9/Materials | Reached level 6 3399 | -9/Materials | Reached level 7 3661 | -9/Materials | Reached level 8 3734 | -9/Materials | Discovered new exit (range 17) 4086 | -9/Materials | Reached level 9 4128 | -9/Materials | Discovered exit to Storage (range 7) 4165 | -9/Materials | Upgraded with Propulsion slot (x1) 4165 | -9/Materials | Upgraded with Utility slot (x1) 4177 | -9/Materials | Identified exit to Mines 4177 | -9/Materials | Discovered new exit (range 15) 4361 | -9/Materials | Central database locked down 4368 | -9/Materials | First assault squad dispatched 5251 | -9/Materials | Reached level 10 5281 | -9/Materials | Sterilization system engaged 5281 | -9/Materials | Non-combat units ordered to evacuate 5286 | -9/Materials | Destroyed 9 combat bots 5381 | -9/Materials | Combat units ordered to evacuate 5465 | -9/Materials | Entered Mines 5507 | -9/Mines | Assembled infested the area 5721 | -9/Mines | Learned location of Storage (-9) 5721 | -9/Mines | Discovered new exit (range 4) 5911 | -9/Mines | Upgraded with Utility slot (x1) 6041 | -9/Mines | Discovered new exit (range 11) 6306 | -9/Mines | Met a Derelict shopkeep closing up shop 6513 | -9/Mines | Deemed a non-threat by the Exiles lab entrance 6514 | -9/Mines | Discovered new exit (range 5) 6520 | -9/Mines | Entered Exiles 6542 | -9/Exiles | Discovered new exit (range 15) 6560 | -9/Exiles | Met 8R-AWN 6581 | -9/Exiles | Met EX-HEX 6651 | -9/Exiles | Met EX-DEC 6674 | -9/Exiles | Learned location of Zion (-7) 6702 | -9/Exiles | Met EX-BIN 6722 | -9/Exiles | Aligned with FarCom system 6723 | -9/Exiles | Given EX-Vault access code 6757 | -9/Exiles | Opened EX-Vault 6771 | -9/Exiles | Found AWS/Autocannon 6816 | -9/Exiles | Warned to stay clear of 0b10 Research branches 6975 | -9/Exiles | Attacked by the Exiles 7023 | -9/Exiles | Destroyed 7 combat bots 7138 | -9/Exiles | Core integrity fell below 50% 7173 | -9/Exiles | Destroyed 8R-AWN 7180 | -9/Exiles | Found Prototype Ballistic Gun 7183 | -9/Exiles | Found Prototype Ballistic Gun 7183 | -9/Exiles | Identified 8R-AWN's Boregun (x2) 7207 | -9/Exiles | Found Prototype Processor 7207 | -9/Exiles | Identified Exp. Targeting Computer 7218 | -9/Exiles | Found Prototype Device 7218 | -9/Exiles | Identified AS-neutralizer No. 17b 7268 | -9/Exiles | Found Prototype Protection 7268 | -9/Exiles | Identified 8R-AWN's Armor/EX 7391 | -9/Exiles | Destroyed EX-BIN 7421 | -9/Exiles | Destroyed EX-HEX 7443 | -9/Exiles | Destroyed EX-DEC 7476 | -9/Exiles | Found Prototype Processor 7676 | -9/Exiles | Discovered new exit (range 14) 7693 | -9/Exiles | Entered Mines 7695 | -8/Mines | Reached level 11 7806 | -8/Mines | CL-ANK came to Exiles' defense 7981 | -8/Mines | Destroyed CL-ANK 8037 | -8/Mines | Build established: Scavenger-Mutant 8044 | -8/Mines | Found Prototype Processor 8044 | -8/Mines | Identified Exp. Melee Analysis Suite 8206 | -8/Mines | Discovered new exit (range 8) 8735 | -8/Mines | Reached level 12 8758 | -8/Mines | Discovered new exit (range 13) 8781 | -8/Mines | Entered Materials 8805 | -8/Materials | Upgraded with Utility slot (x1) 8805 | -8/Materials | Identified Exp. Core Analyzer 9016 | -8/Materials | Discovered new exit (range 5) 9111 | -8/Materials | Build established: Scavenger-Gunner 9134 | -8/Materials | Reached level 13 9981 | -8/Materials | First assault squad dispatched 10169 | -8/Materials | Discovered new exit (range 9) 10443 | -8/Materials | Reached level 14 10691 | -8/Materials | Upgraded with Power slot (x1) 10691 | -8/Materials | Upgraded with Propulsion slot (x1) 10901 | -8/Materials | Entered Factory 11355 | -7/Factory | Reached level 15 11513 | -7/Factory | Destroyed 8 combat bots 11701 | -7/Factory | First assault squad dispatched 11910 | -7/Factory | Fabricated Lrn. Tractor Beam? 11989 | -7/Factory | Reached level 16 12207 | -7/Factory | Discovered new exit (range 11) 12261 | -7/Factory | Destroyed 7 combat bots 12480 | -7/Factory | Discovered new exit (range 7) 12974 | -7/Factory | Reached level 17 12998 | -7/Factory | Upgraded with Utility slot (x1) 13819 | -7/Factory | Destroyed 7 combat bots 13827 | -7/Factory | High security lockdown imminent 13907 | -7/Factory | High security lockdown engaged 14081 | -7/Factory | Destroyed 9 combat bots 14099 | -7/Factory | Reached level 18 14149 | -7/Factory | Destroyed 9 combat bots 14184 | -7/Factory | Destroyed 8 combat bots 14351 | -7/Factory | Sterilization system engaged 14351 | -7/Factory | Non-combat units ordered to evacuate 14365 | -7/Factory | Destroyed 19 combat bots 14451 | -7/Factory | Combat units ordered to evacuate 14614 | -7/Factory | Identified exit to Factory 14651 | -7/Factory | Ambient heat levels rising (+10) 14801 | -7/Factory | Ambient heat levels rising (+10) 14951 | -7/Factory | Ambient heat levels rising (+10) 15101 | -7/Factory | Ambient heat levels rising (+10) 15251 | -7/Factory | Ambient heat levels rising (+10) 15401 | -7/Factory | Ambient heat levels rising (+10) 15448 | -7/Factory | Entered another Factory area 15450 | -6/Factory | Reached level 19 15596 | -6/Factory | Identified exit to Lower Caves 15596 | -6/Factory | Identified exit to Extension 15629 | -6/Factory | Sucked down chute 15629 | -6/Factory | Entered Waste 15629 | -6/Waste | The area was eerily silent 15873 | -6/Waste | Upgraded with Utility slot (x1) 16042 | -6/Waste | Discovered new exit (range 13) 16054 | -6/Waste | Build established: Scavenger-Mutant 16233 | -6/Waste | Identified exit to Factory 16235 | -6/Waste | Entered Factory 16547 | -6/Factory | Build established: Scavenger-Gunner 16557 | -6/Factory | Discovered new exit (range 4) 16561 | -6/Factory | Identified exit to Factory 16585 | -6/Factory | First assault squad dispatched 16761 | -6/Factory | Destroyed 7 combat bots 16901 | -6/Factory | Destroyed 7 combat bots 16996 | -6/Factory | Reached level 20 17163 | -6/Factory | Garrison activated, responded to threat 17199 | -6/Factory | Cargo convoy interrupted 17245 | -6/Factory | Destroyed 13 combat bots 17354 | -6/Factory | Garrison activated, responded to threat 17517 | -6/Factory | Destroyed 8 combat bots 17632 | -6/Factory | Destroyed 12 combat bots 17693 | -6/Factory | Garrison activated, responded to threat 17695 | -6/Factory | Reached level 21 17695 | -6/Factory | High security lockdown imminent 17722 | -6/Factory | Destroyed 9 combat bots 17775 | -6/Factory | High security lockdown engaged 17814 | -6/Factory | Destroyed 9 combat bots 17836 | -6/Factory | Upgraded with Weapon slot (x1) 17940 | -6/Factory | Entered Extension 17958 | -6/Extension | Destroyed 10 combat bots 17998 | -6/Extension | Rescued A7 18640 | -6/Extension | First assault squad dispatched 18659 | -6/Extension | Spotted B-75 Beast 18667 | -6/Extension | Allies destroyed B-75 Beast 18677 | -6/Extension | Spotted B-75 Beast 18691 | -6/Extension | Allies destroyed B-75 Beast 18905 | -6/Extension | Rescued a captive Derelict 18959 | -6/Extension | Reached level 22 19099 | -6/Extension | Upgraded with Weapon slot (x1) 19282 | -6/Extension | Discovered exit to Factory (range 10) 19283 | -6/Extension | Discovered new exit (range 6) 19293 | -6/Extension | Identified exit to Cetus 19300 | -6/Extension | Entered Cetus 19300 | -6/Cetus | Accompanied by 10 allies (A7) 19305 | -6/Cetus | Acquired a Cetus Manufacturing Module code from A7 19325 | -6/Cetus | Spotted Cetus Guard 19326 | -6/Cetus | Spotted Cetus Guard 19327 | -6/Cetus | Spotted Cetus Guard 19327 | -6/Cetus | Allies destroyed Cetus Guard 19334 | -6/Cetus | Destroyed Cetus Guard 19347 | -6/Cetus | Allies destroyed Cetus Guard 19369 | -6/Cetus | System corruption reached 10% 19410 | -6/Cetus | Build established: Scavenger-Executioner 19437 | -6/Cetus | Started Cetus Manufacturing Module 19462 | -6/Cetus | Manufactured an Enhanced Grunt 19487 | -6/Cetus | Manufactured an Enhanced Grunt 19512 | -6/Cetus | Manufactured an Enhanced Grunt 19537 | -6/Cetus | Manufactured an Enhanced Grunt 19547 | -6/Cetus | Cetus Manufacturing Module disabled 19576 | -6/Cetus | Discovered new exit (range 15) 19619 | -6/Cetus | Spotted Cetus Guard 19619 | -6/Cetus | Spotted Cetus Guard 19623 | -6/Cetus | Spotted Cetus Guard 19623 | -6/Cetus | Spotted Cetus Guard 19624 | -6/Cetus | Destroyed Cetus Guard 19630 | -6/Cetus | Destroyed Cetus Guard 19632 | -6/Cetus | Allies destroyed Cetus Guard 19635 | -6/Cetus | Allies destroyed Cetus Guard 19655 | -6/Cetus | Discovered exit to Factory (range 15) 19663 | -6/Cetus | Met Revision 17 19729 | -6/Cetus | Identified exit to Archives 19787 | -6/Cetus | Destroyed A7 19793 | -6/Cetus | Extracted ID and sensor layout for unrecognized location from A7's data core 19835 | -6/Cetus | Entered Archives 19835 | -6/Archives | Accompanied by 6 allies 20168 | -6/Archives | Discovered new exit (range 15) 20191 | -6/Archives | Identified exit to Hub_04(d) 20195 | -6/Archives | Build established: Scavenger-Mutant 20219 | -6/Archives | Entered Hub_04(d) 20219 | -6/Hub_04(d) | Accompanied by 5 allies 20356 | -6/Hub_04(d) | Destroyed 7 combat bots 20387 | -6/Hub_04(d) | Discovered exit to Factory (range 4) 20455 | -6/Hub_04(d) | Discovered exit to Factory (range 6) 20475 | -6/Hub_04(d) | Reached level 23 20504 | -6/Hub_04(d) | Build established: Scavenger-Executioner 20569 | -6/Hub_04(d) | First assault squad dispatched 20612 | -6/Hub_04(d) | Network Hub disabled 20621 | -6/Hub_04(d) | Spotted Lightning 20621 | -6/Hub_04(d) | Spotted Lightning 20621 | -6/Hub_04(d) | Spotted Lightning 20621 | -6/Hub_04(d) | Destroyed Lightning 20624 | -6/Hub_04(d) | Destroyed Lightning 20624 | -6/Hub_04(d) | Destroyed Lightning 20654 | -6/Hub_04(d) | Destroyed 10 combat bots 20682 | -6/Hub_04(d) | Found Exp. Targeting Computer 20796 | -6/Hub_04(d) | Entered Factory 20796 | -5/Factory | Accompanied by 1 ally 21078 | -5/Factory | Identified exit to Upper Caves 21096 | -5/Factory | First assault squad dispatched 21319 | -5/Factory | Destroyed 11 combat bots 21485 | -5/Factory | Discovered new exit (range 5) 21504 | -5/Factory | Identified exit to Factory 21594 | -5/Factory | Reached level 24 21664 | -5/Factory | Upgraded with Utility slot (x1) 21822 | -5/Factory | Cargo convoy interrupted 21830 | -5/Factory | Garrison activated, responded to threat 21860 | -5/Factory | Destroyed 14 combat bots 21899 | -5/Factory | Found Prototype Device 21899 | -5/Factory | Identified Beam Splitter 22151 | -5/Factory | Sucked down chute 22151 | -5/Factory | Entered Waste 22152 | -5/Waste | Joined by Warlord forces that had cleared the area 22280 | -5/Waste | A Compactor rumbled back to life 22280 | -5/Waste | Spotted C-40 Crusher 22281 | -5/Waste | Destroyed C-40 Crusher 22492 | -5/Waste | Discovered new exit (range 16) 22553 | -5/Waste | Identified exit to Factory 22561 | -5/Waste | Entered Factory 22561 | -5/Factory | Accompanied by 19 allies 22766 | -5/Factory | Repaired Broken Graviton Reactor? 23318 | -5/Factory | Fabricated Hvy. Siege Treads? 23529 | -5/Factory | Fabricated Hvy. Siege Treads (x2) 23537 | -5/Factory | Reached level 25 23733 | -5/Factory | Garrison activated, responded to threat 23761 | -5/Factory | First assault squad dispatched 24201 | -5/Factory | High security lockdown imminent 24281 | -5/Factory | High security lockdown engaged 24521 | -5/Factory | Reached level 26 24549 | -5/Factory | P-70 Sage assimilated allied 36-EDN(g) 24595 | -5/Factory | Destroyed 7 combat bots 24596 | -5/Factory | Upgraded with Propulsion slot (x2) 24695 | -5/Factory | Destroyed 11 combat bots 24808 | -5/Factory | P-70 Sage assimilated allied X8-IQ3(g) 24869 | -5/Factory | Destroyed 14 combat bots 24926 | -5/Factory | Core integrity fell below 50% 24930 | -5/Factory | Sterilization system engaged 24930 | -5/Factory | Non-combat units ordered to evacuate 24963 | -5/Factory | Destroyed 21 combat bots 25030 | -5/Factory | Combat units ordered to evacuate 25148 | -5/Factory | Entered Upper Caves 25148 | -5/Upper Caves | Accompanied by 1 ally 25453 | -5/Upper Caves | Discovered new exit (range 15) 25522 | -5/Upper Caves | Destroyed 7 combat bots 25571 | -5/Upper Caves | Identified exit to Upper Caves 25572 | -5/Upper Caves | Entered another Upper Caves area 25572 | -5/Upper Caves | Accompanied by 1 ally 25827 | -5/Upper Caves | Spotted B-75 Beast 25835 | -5/Upper Caves | Destroyed B-75 Beast 25979 | -5/Upper Caves | Discovered new exit (range 15) 25980 | -5/Upper Caves | Encountered a Warlord checkpoint 26000 | -5/Upper Caves | Identified exit to Zhirov 26181 | -5/Upper Caves | Entered Zhirov 26181 | -5/Zhirov | Discovered new exit (range 3) 26217 | -5/Zhirov | Met Zhirov 26249 | -5/Zhirov | Learned location of Quarantine (-3) 26249 | -5/Zhirov | Learned location of Command (-1) 26265 | -5/Zhirov | Zhirov requested help retrieving the SGEMP Prototype 26293 | -5/Zhirov | Found Alien Artifact 26293 | -5/Zhirov | Identified Integrated Reactor 26293 | -5/Zhirov | Installed Integrated Reactor, increased core energy generation (+10) 26318 | -5/Zhirov | Found Alien Artifact 26456 | -5/Zhirov | Identified exit to Proximity Caves 26498 | -5/Zhirov | Entered Proximity Caves 26604 | -4/Proximity Caves | Reached level 27 26745 | -4/Proximity Caves | Attracted the attention of an 0b10 outpost 26840 | -4/Proximity Caves | Destroyed 18 combat bots 27125 | -4/Proximity Caves | Discovered exit to Factory (range 6) 27190 | -4/Proximity Caves | Entered Factory 27190 | -4/Factory | Accompanied by 2 allies 27204 | -4/Factory | Identified exit to Upper Caves 27204 | -4/Factory | Identified exit to Armory 27430 | -4/Factory | Spotted B-86 Titan 27447 | -4/Factory | Destroyed B-86 Titan 27560 | -4/Factory | Garrison activated, responded to threat 27919 | -4/Factory | Garrison activated, responded to threat 27940 | -4/Factory | First assault squad dispatched 28061 | -4/Factory | Reached level 28 28313 | -4/Factory | Central database locked down 28587 | -4/Factory | Discovered new exit (range 15) 28872 | -4/Factory | Destroyed 10 combat bots 28951 | -4/Factory | Garrison activated, responded to threat 29039 | -4/Factory | Destroyed 7 combat bots 29264 | -4/Factory | Destroyed B-86 Titan 29491 | -4/Factory | High security lockdown imminent 29571 | -4/Factory | High security lockdown engaged 29737 | -4/Factory | Destroyed 9 combat bots 29826 | -4/Factory | Destroyed 17 combat bots 29929 | -4/Factory | Reached level 29 29980 | -4/Factory | Sterilization system engaged 29980 | -4/Factory | Non-combat units ordered to evacuate 30013 | -4/Factory | Destroyed 21 combat bots 30053 | -4/Factory | Entered Upper Caves 30260 | -4/Upper Caves | Learned Research emergency access door positions 30355 | -4/Upper Caves | Attracted the attention of an 0b10 base 30377 | -4/Upper Caves | Destroyed 7 combat bots 30545 | -4/Upper Caves | Attacked by a delusional Derelict stockpiling Unaware 30965 | -4/Upper Caves | Discovered new exit (range 9) 30978 | -4/Upper Caves | Identified exit to Upper Caves 30988 | -4/Upper Caves | Entered another Upper Caves area 30988 | -4/Upper Caves | Accompanied by 4 allies 31152 | -4/Upper Caves | Encountered a Warlord checkpoint 31336 | -4/Upper Caves | Discovered new exit (range 8) 31365 | -4/Upper Caves | Identified exit to Warlord 31368 | -4/Upper Caves | Entered Warlord 31368 | -4/Warlord | Accompanied by 1 ally 31428 | -4/Warlord | System corruption cleaned by Quarantine Array 31857 | -4/Warlord | Received a Watcher feed algorithm from an ecstatic Tinkerer 31953 | -4/Warlord | Met Warlord 31978 | -4/Warlord | Warlord's base attacked by MAIN.C 32304 | -4/Warlord | Spotted B-90 Cyclops 32308 | -4/Warlord | Allies destroyed B-90 Cyclops 32323 | -4/Warlord | Spotted B-86 Titan 32325 | -4/Warlord | Allies destroyed B-86 Titan 32328 | -4/Warlord | Warlord forces counterattacked 32329 | -4/Warlord | Destroyed Executioner 32382 | -4/Warlord | Spotted Striker 32386 | -4/Warlord | P-70 Sage assimilated allied GB-GLR(g) 32395 | -4/Warlord | P-70 Sage assimilated allied EL-CPM(M) 32559 | -4/Warlord | Found Prototype Reactor 32559 | -4/Warlord | Identified Vortex Chain Reactor 32576 | -4/Warlord | Found Prototype Device 32576 | -4/Warlord | Identified System Purifier 32580 | -4/Warlord | Found Prototype Processor 32580 | -4/Warlord | Identified Exp. Target Analyzer 32653 | -4/Warlord | Warlord base infiltrated, sounded retreat 32688 | -4/Warlord | Spotted Executioner 32712 | -4/Warlord | Destroyed Executioner 32733 | -4/Warlord | Destroyed 9 combat bots 32750 | -4/Warlord | Found Exp. Core Analyzer 32758 | -4/Warlord | Spotted Striker 32765 | -4/Warlord | Destroyed Striker 32801 | -4/Warlord | Destroyed 8 combat bots 32878 | -4/Warlord | Spotted Executioner 32879 | -4/Warlord | Destroyed Executioner 32924 | -4/Warlord | Destroyed 12 combat bots 32971 | -4/Warlord | Discovered new exit (range 9) 32983 | -4/Warlord | Identified exit to Proximity Caves 33009 | -4/Warlord | Entered Proximity Caves 33827 | -3/Proximity Caves | Attracted the attention of an 0b10 checkpoint 33844 | -3/Proximity Caves | Discovered new exit (range 5) 33857 | -3/Proximity Caves | Identified exit to Research 33861 | -3/Proximity Caves | Entered Research 33863 | -3/Research | Reached level 30 33984 | -3/Research | Identified exit to Quarantine 34100 | -3/Research | Central database locked down 34273 | -3/Research | Destroyed 8 combat bots 34578 | -3/Research | Spotted B-90 Cyclops 34584 | -3/Research | Destroyed B-90 Cyclops 34997 | -3/Research | Cargo convoy interrupted 34997 | -3/Research | Spotted Striker 35002 | -3/Research | Destroyed Striker 35029 | -3/Research | Destroyed 9 combat bots 35049 | -3/Research | Found Prototype Processor 35049 | -3/Research | Identified Spectral Analyzer 35054 | -3/Research | Found Prototype Device 35054 | -3/Research | Identified Exp. Sensor Array 35111 | -3/Research | First assault squad dispatched 35141 | -3/Research | Reached level 31 36100 | -3/Research | Destroyed 7 combat bots 38451 | -3/Research | High security lockdown imminent 38531 | -3/Research | High security lockdown engaged 38666 | -3/Research | Spotted Executioner 38666 | -3/Research | Destroyed Executioner 38693 | -3/Research | Found Prototype Device 38700 | -3/Research | Destroyed 9 combat bots 38705 | -3/Research | Sterilization system engaged 38705 | -3/Research | Non-combat units ordered to evacuate 38709 | -3/Research | System corruption reached 10% 38746 | -3/Research | Destroyed 8 combat bots 38778 | -3/Research | Destroyed Striker 38805 | -3/Research | Combat units ordered to evacuate 38821 | -3/Research | Identified Adv. Kinecellerator 38833 | -3/Research | Entered Quarantine 38835 | -3/Quarantine | Reached level 32 38988 | -3/Quarantine | High security lockdown imminent 39068 | -3/Quarantine | High security lockdown engaged 39144 | -3/Quarantine | Destroyed Executioner 39168 | -3/Quarantine | Destroyed 16 combat bots 39241 | -3/Quarantine | Spotted Investigator 39243 | -3/Quarantine | Destroyed Investigator 39246 | -3/Quarantine | Destroyed Executioner 39270 | -3/Quarantine | Destroyed 18 combat bots 39377 | -3/Quarantine | Destroyed Executioner 39380 | -3/Quarantine | Destroyed Executioner 39442 | -3/Quarantine | Destroyed 27 combat bots 39576 | -3/Quarantine | Destroyed Executioner 39578 | -3/Quarantine | Spotted Striker 39582 | -3/Quarantine | Spotted Investigator 39585 | -3/Quarantine | Destroyed Striker 39592 | -3/Quarantine | Destroyed Investigator 39647 | -3/Quarantine | Destroyed 31 combat bots 39810 | -3/Quarantine | Destroyed Executioner 39813 | -3/Quarantine | Destroyed Striker 39817 | -3/Quarantine | Destroyed Striker 39827 | -3/Quarantine | Spotted Investigator 39828 | -3/Quarantine | Scanned by Researcher 39829 | -3/Quarantine | Destroyed Investigator 39868 | -3/Quarantine | Destroyed 34 combat bots 39906 | -3/Quarantine | Sterilization system engaged 39906 | -3/Quarantine | Non-combat units ordered to evacuate 40006 | -3/Quarantine | Combat units ordered to evacuate 40028 | -3/Quarantine | Discovered new exit (range 17) 40064 | -3/Quarantine | Found Alien Artifact 40080 | -3/Quarantine | Reached level 33 40206 | -3/Quarantine | Ambient heat levels rising (+10) 40356 | -3/Quarantine | Ambient heat levels rising (+10) 40506 | -3/Quarantine | Ambient heat levels rising (+10) 40595 | -3/Quarantine | Cryocooling Duct disabled 40656 | -3/Quarantine | Ambient heat levels rising (+10) 40701 | -3/Quarantine | Cryocooling Duct disabled 40806 | -3/Quarantine | Ambient heat levels rising (+10) 40921 | -3/Quarantine | Spotted Fortress 40956 | -3/Quarantine | Ambient heat levels rising (+10) 40960 | -3/Quarantine | Core integrity fell below 50% 40984 | -3/Quarantine | Core integrity fell below 20% 41056 | -3/Quarantine | Discovered new exit (range 5) 41061 | -3/Quarantine | Identified exit to Section 7 41083 | -3/Quarantine | Entered Section 7 41085 | -3/Section 7 | Identified Core Reset Matrix 41085 | -3/Section 7 | Identified Transdimensional Reconstructor 41085 | -3/Section 7 | Used Core Reset Matrix 41089 | -3/Section 7 | Sensed 21 artifacts in vicinity 41114 | -3/Section 7 | Identified exit to Research 41254 | -3/Section 7 | Found Integrated Reactor 41254 | -3/Section 7 | Installed Integrated Reactor, increased core energy generation (+10) 41337 | -3/Section 7 | Spotted S7 Guard 41353 | -3/Section 7 | Destroyed S7 Guard 41374 | -3/Section 7 | Found Integrated Thermoelectric Network 41375 | -3/Section 7 | Installed Integrated Thermoelectric Network, gained heat-energy exchange potential 41381 | -3/Section 7 | First assault squad dispatched 41405 | -3/Section 7 | High security lockdown imminent 41450 | -3/Section 7 | Destroyed 19 combat bots 41485 | -3/Section 7 | High security lockdown engaged 41555 | -3/Section 7 | Destroyed 9 combat bots 41557 | -3/Section 7 | Garrison activated, responded to threat 41567 | -3/Section 7 | Spotted Striker 41568 | -3/Section 7 | Spotted S7 Guard 41582 | -3/Section 7 | Destroyed S7 Guard 41615 | -3/Section 7 | Destroyed 10 combat bots 41656 | -3/Section 7 | Destroyed Striker 41659 | -3/Section 7 | Spotted Investigator 41662 | -3/Section 7 | Destroyed Investigator 41696 | -3/Section 7 | Destroyed 24 combat bots 41798 | -3/Section 7 | Spotted Executioner 41804 | -3/Section 7 | Destroyed Executioner 41819 | -3/Section 7 | Spotted Executioner 41819 | -3/Section 7 | Spotted Striker 41822 | -3/Section 7 | Destroyed Executioner 41822 | -3/Section 7 | Spotted Striker 41825 | -3/Section 7 | Destroyed Striker 41830 | -3/Section 7 | Destroyed Striker 41874 | -3/Section 7 | Destroyed 24 combat bots 41990 | -3/Section 7 | Warped through subspace 42119 | -3/Section 7 | Destroyed 15 combat bots 42140 | -3/Section 7 | Spotted Executioner 42146 | -3/Section 7 | Destroyed Executioner 42209 | -3/Section 7 | Spotted Alpha 7 42223 | -3/Section 7 | Destroyed Executioner 42242 | -3/Section 7 | Spotted Executioner 42242 | -3/Section 7 | Spotted Striker 42244 | -3/Section 7 | Destroyed Executioner 42247 | -3/Section 7 | Sterilization system engaged 42247 | -3/Section 7 | Non-combat units ordered to evacuate 42291 | -3/Section 7 | Destroyed 46 combat bots 42347 | -3/Section 7 | Combat units ordered to evacuate 42356 | -3/Section 7 | Spotted Alpha 7 42412 | -3/Section 7 | Spotted S7 Guard 42425 | -3/Section 7 | Destroyed S7 Guard 42428 | -3/Section 7 | Destroyed Alpha 7 42457 | -3/Section 7 | Found Exp. Target Analyzer 42459 | -3/Section 7 | Destroyed Alpha 7 42476 | -3/Section 7 | Found Core Membrane 42476 | -3/Section 7 | Installed Core Membrane, gained immunity to corruption 42512 | -3/Section 7 | Spotted B-99 Colossus 42547 | -3/Section 7 | Ambient heat levels rising (+10) 42550 | -3/Section 7 | Destroyed B-99 Colossus 42562 | -3/Section 7 | Found Prototype Ballistic Gun 42562 | -3/Section 7 | Identified Multirail 42566 | -3/Section 7 | Found Multirail 42697 | -3/Section 7 | Ambient heat levels rising (+10) 42847 | -3/Section 7 | Ambient heat levels rising (+10) 42997 | -3/Section 7 | Ambient heat levels rising (+10) 43108 | -3/Section 7 | Found Spacefold Activator 43147 | -3/Section 7 | Ambient heat levels rising (+10) 43274 | -3/Section 7 | Found Hpw. Transdimensional Reconstructor 43297 | -3/Section 7 | Ambient heat levels rising (+10) 43447 | -3/Section 7 | Ambient heat levels rising (+10) 43467 | -3/Section 7 | Entered Research 43467 | -2/Research | Warlord forces began assault on 0b10 43469 | -2/Research | Reached level 34 43548 | -2/Research | Discovered new exit (range 13) 43553 | -2/Research | Identified exit to Testing 43556 | -2/Research | High security lockdown imminent 43577 | -2/Research | Research machine network offline 43636 | -2/Research | High security lockdown engaged 43762 | -2/Research | Spotted Executioner 43764 | -2/Research | Destroyed Executioner 43770 | -2/Research | Spotted Striker 43773 | -2/Research | Destroyed Striker 43792 | -2/Research | Borebot progress halted 43899 | -2/Research | Borebot progress halted 43953 | -2/Research | Met up with Warlord 44029 | -2/Research | Borebot progress halted 44043 | -2/Research | Spotted Striker 44071 | -2/Research | Spotted Striker 44087 | -2/Research | Destroyed Striker 44199 | -2/Research | Spotted Executioner 44200 | -2/Research | Spotted Striker 44200 | -2/Research | Spotted Striker 44241 | -2/Research | Spotted Striker 44241 | -2/Research | Destroyed Striker 44258 | -2/Research | Spotted Striker 44259 | -2/Research | Destroyed Striker 44286 | -2/Research | Destroyed 8 combat bots 44401 | -2/Research | Destroyed Investigator 44417 | -2/Research | Spotted Executioner 44424 | -2/Research | Destroyed Executioner 44434 | -2/Research | Spotted Executioner 44434 | -2/Research | Spotted Executioner 44436 | -2/Research | Destroyed Executioner 44436 | -2/Research | Destroyed Executioner 44459 | -2/Research | Spotted Striker 44460 | -2/Research | Destroyed 18 combat bots 44469 | -2/Research | Destroyed Striker 44473 | -2/Research | Warlord invited to help at Command 44479 | -2/Research | Spotted Executioner 44515 | -2/Research | Spotted Striker 44517 | -2/Research | Destroyed Striker 44518 | -2/Research | Spotted Striker 44523 | -2/Research | Destroyed Striker 44593 | -2/Research | Reached level 35 44652 | -2/Research | Spotted Executioner 44653 | -2/Research | Destroyed Executioner 44655 | -2/Research | Spotted Striker 44656 | -2/Research | Destroyed Striker 44672 | -2/Research | Spotted Striker 44672 | -2/Research | Spotted Executioner 44674 | -2/Research | Destroyed Striker 44674 | -2/Research | Destroyed Executioner 44677 | -2/Research | Destroyed Executioner 44708 | -2/Research | Destroyed 14 combat bots 44728 | -2/Research | Spotted Striker 44747 | -2/Research | Destroyed Striker 44768 | -2/Research | Destroyed 11 combat bots 44800 | -2/Research | Spotted Striker 44807 | -2/Research | Destroyed Striker 44815 | -2/Research | Spotted Executioner 44816 | -2/Research | Destroyed Executioner 44839 | -2/Research | Spotted Striker 44849 | -2/Research | Destroyed 13 combat bots 44849 | -2/Research | Destroyed Striker 44851 | -2/Research | Spotted Striker 44855 | -2/Research | Destroyed Striker 44997 | -2/Research | Spotted Executioner 44997 | -2/Research | Spotted Striker 44999 | -2/Research | Destroyed Executioner 45002 | -2/Research | Destroyed Striker 45003 | -2/Research | Spotted Executioner 45004 | -2/Research | Spotted Striker 45006 | -2/Research | Spotted Striker 45012 | -2/Research | Destroyed Executioner 45021 | -2/Research | Warped through subspace 45022 | -2/Research | Core integrity fell below 50% 45026 | -2/Research | Emitted hypermatrix ping 45031 | -2/Research | Assembled emerged from beneath the floor 45032 | -2/Research | Core integrity fell below 20% 45098 | -2/Research | Destroyed 33 combat bots 45163 | -2/Research | Spotted Striker 45166 | -2/Research | Destroyed Striker 45174 | -2/Research | Assembled emerged from beneath the floor 45199 | -2/Research | Spotted Striker 45204 | -2/Research | Spotted Striker 45206 | -2/Research | Spotted Striker 45207 | -2/Research | Destroyed Striker 45210 | -2/Research | Destroyed Striker 45232 | -2/Research | Warlord destroyed during the assault 45233 | -2/Research | Sterilization system engaged 45233 | -2/Research | Non-combat units ordered to evacuate 45249 | -2/Research | Destroyed Striker 45276 | -2/Research | Destroyed 19 combat bots 45284 | -2/Research | Spotted Executioner 45287 | -2/Research | Spotted Striker 45290 | -2/Research | Destroyed Executioner 45296 | -2/Research | Destroyed Striker 45320 | -2/Research | Spotted Striker 45320 | -2/Research | Destroyed Striker 45333 | -2/Research | Combat units ordered to evacuate 45353 | -2/Research | Destroyed 15 combat bots 45453 | -2/Research | Assembled emerged from beneath the floor 45533 | -2/Research | Ambient heat levels rising (+10) 45576 | -2/Research | Entered Testing 45576 | -2/Testing | Accompanied by 6 allies 45632 | -2/Testing | High security lockdown imminent 45712 | -2/Testing | High security lockdown engaged 45728 | -2/Testing | Spotted PG-HMQBY94FPV 45742 | -2/Testing | Destroyed PG-HMQBY94FPV 45752 | -2/Testing | Found Exp. Weapon Cycler 45783 | -2/Testing | Spotted Executioner 45783 | -2/Testing | Spotted Executioner 45786 | -2/Testing | Destroyed Executioner 45802 | -2/Testing | Reached level 36 45824 | -2/Testing | Destroyed Executioner 45856 | -2/Testing | Destroyed 16 combat bots 45892 | -2/Testing | Spotted Investigator 45895 | -2/Testing | Destroyed Investigator 45930 | -2/Testing | Destroyed 13 combat bots 45942 | -2/Testing | Spotted Striker 45945 | -2/Testing | Destroyed Executioner 45990 | -2/Testing | Destroyed Striker 46055 | -2/Testing | Spotted Executioner 46058 | -2/Testing | Destroyed Executioner 46079 | -2/Testing | Destroyed 21 combat bots 46236 | -2/Testing | Spotted Executioner 46242 | -2/Testing | Destroyed Executioner 46268 | -2/Testing | Spotted Investigator 46268 | -2/Testing | Destroyed Investigator 46274 | -2/Testing | Destroyed Executioner 46298 | -2/Testing | Destroyed 31 combat bots 46477 | -2/Testing | Spotted Executioner 46479 | -2/Testing | Destroyed Executioner 46499 | -2/Testing | Spotted Investigator 46500 | -2/Testing | Destroyed Investigator 46514 | -2/Testing | Sterilization system engaged 46514 | -2/Testing | Non-combat units ordered to evacuate 46522 | -2/Testing | Spotted Striker 46523 | -2/Testing | Destroyed Striker 46537 | -2/Testing | Destroyed Executioner 46547 | -2/Testing | Spotted Striker 46549 | -2/Testing | Destroyed Striker 46563 | -2/Testing | Spotted Striker 46566 | -2/Testing | Spotted Striker 46569 | -2/Testing | Destroyed Striker 46572 | -2/Testing | Spotted Alpha 7 46575 | -2/Testing | Destroyed Striker 46591 | -2/Testing | Found Exp. Core Analyzer 46596 | -2/Testing | Destroyed 42 combat bots 46614 | -2/Testing | Combat units ordered to evacuate 46631 | -2/Testing | Stole the SGEMP Prototype 46786 | -2/Testing | Found Prototype Ballistic Cannon 46786 | -2/Testing | Identified Omega Cannon 46814 | -2/Testing | Ambient heat levels rising (+10) 46964 | -2/Testing | Ambient heat levels rising (+10) 47114 | -2/Testing | Ambient heat levels rising (+10) 47264 | -2/Testing | Ambient heat levels rising (+10) 47282 | -2/Testing | Discovered new exit (range 17) 47321 | -2/Testing | Identified exit to Access 47323 | -2/Testing | Entered Access 47324 | -1/Access | Attacked by Zhirov 47327 | -1/Access | Destroyed Zhirov 47341 | -1/Access | Destroyed Svarog 47347 | -1/Access | Destroyed Perun 47357 | -1/Access | Found Prototype Hackware 47464 | -1/Access | High security lockdown imminent 47544 | -1/Access | High security lockdown engaged 47545 | -1/Access | Destroyed 8 combat bots 47712 | -1/Access | Reached level 37 47719 | -1/Access | Spotted Investigator 47720 | -1/Access | Destroyed Investigator 47754 | -1/Access | Destroyed 17 combat bots 47878 | -1/Access | Destroyed Executioner 47902 | -1/Access | Destroyed 29 combat bots 48037 | -1/Access | Destroyed 8 combat bots 48067 | -1/Access | Spotted Striker 48067 | -1/Access | Destroyed Striker 48069 | -1/Access | Spotted Striker 48070 | -1/Access | Destroyed Striker 48107 | -1/Access | Destroyed 12 combat bots 48204 | -1/Access | Destroyed 8 combat bots 48282 | -1/Access | Destroyed 8 combat bots 48331 | -1/Access | Reached level 38 48354 | -1/Access | Destroyed 12 combat bots 48357 | -1/Access | Spotted Striker 48378 | -1/Access | Spotted Striker 48391 | -1/Access | Spotted Striker 48393 | -1/Access | Destroyed Striker 48398 | -1/Access | Destroyed Striker 48398 | -1/Access | Destroyed Striker 48399 | -1/Access | Sterilization system engaged 48419 | -1/Access | Destroyed 10 combat bots 48419 | -1/Access | Spotted Striker 48419 | -1/Access | Spotted Executioner 48419 | -1/Access | Spotted Executioner 48420 | -1/Access | Spotted Striker 48422 | -1/Access | Destroyed Executioner 48427 | -1/Access | Destroyed Striker 48430 | -1/Access | Destroyed Striker 48481 | -1/Access | Destroyed 15 combat bots 48485 | -1/Access | Destroyed Executioner 48485 | -1/Access | Spotted Executioner 48486 | -1/Access | Spotted Executioner 48487 | -1/Access | Destroyed Striker 48487 | -1/Access | Destroyed Executioner 48487 | -1/Access | Destroyed Executioner 48699 | -1/Access | Ambient heat levels rising (+10) 48765 | -1/Access | Spotted B-99 Colossus 48779 | -1/Access | Destroyed B-99 Colossus 48849 | -1/Access | Ambient heat levels rising (+10) 48982 | -1/Access | Energy Cycler disabled 48999 | -1/Access | Ambient heat levels rising (+10) 49149 | -1/Access | Ambient heat levels rising (+10) 49299 | -1/Access | Ambient heat levels rising (+10) 49435 | -1/Access | Discovered new exit (range 8) 49449 | -1/Access | Ambient heat levels rising (+10) 49599 | -1/Access | Ambient heat levels rising (+10) 49739 | -1/Access | Spotted B-99 Colossus 49739 | -1/Access | Spotted B-99 Colossus 49749 | -1/Access | Ambient heat levels rising (+10) 49767 | -1/Access | Destroyed B-99 Colossus 49778 | -1/Access | Destroyed B-99 Colossus 49795 | -1/Access | Found Multirail 49804 | -1/Access | Found Multirail 49846 | -1/Access | Found Multirail 49899 | -1/Access | Ambient heat levels rising (+10) 49904 | -1/Access | Identified exit to Command 49906 | -1/Access | Entered Command 50031 | -1/Command | Spotted B-99 Colossus 50047 | -1/Command | Destroyed B-99 Colossus 50050 | -1/Command | High security lockdown imminent 50075 | -1/Command | Found Multirail 50130 | -1/Command | High security lockdown engaged 50159 | -1/Command | Destroyed 9 combat bots 50233 | -1/Command | Destroyed 19 combat bots 50298 | -1/Command | Destroyed Executioner 50298 | -1/Command | Spotted Striker 50300 | -1/Command | Spotted Investigator 50301 | -1/Command | Destroyed Striker 50303 | -1/Command | Destroyed Investigator 50327 | -1/Command | Destroyed 16 combat bots 50451 | -1/Command | Spotted Striker 50456 | -1/Command | Destroyed Striker 50459 | -1/Command | Destroyed Striker 50462 | -1/Command | Reached level 39 50465 | -1/Command | Spotted Executioner 50471 | -1/Command | Destroyed Executioner 50492 | -1/Command | Destroyed 19 combat bots 50649 | -1/Command | Destroyed Executioner 50655 | -1/Command | Destroyed Executioner 50665 | -1/Command | Spotted Executioner 50665 | -1/Command | Destroyed Executioner 50686 | -1/Command | Destroyed 15 combat bots 50703 | -1/Command | Spotted Striker 50711 | -1/Command | Spotted Striker 50716 | -1/Command | Destroyed Striker 50721 | -1/Command | Destroyed Striker 50753 | -1/Command | Destroyed 14 combat bots 50952 | -1/Command | Destroyed Executioner 50952 | -1/Command | Spotted Striker 50955 | -1/Command | Destroyed Striker 50957 | -1/Command | Destroyed Striker 50958 | -1/Command | Spotted Striker 50959 | -1/Command | Spotted Executioner 50960 | -1/Command | Destroyed Executioner 50963 | -1/Command | Destroyed Executioner 50963 | -1/Command | Spotted Executioner 50966 | -1/Command | Destroyed Executioner 50968 | -1/Command | Destroyed Striker 50971 | -1/Command | Destroyed Executioner 50977 | -1/Command | Destroyed Executioner 50980 | -1/Command | Destroyed Executioner 50999 | -1/Command | Spotted Executioner 51009 | -1/Command | Destroyed 32 combat bots 51059 | -1/Command | Destroyed Executioner 51246 | -1/Command | Destroyed Striker 51246 | -1/Command | Destroyed Executioner 51262 | -1/Command | Destroyed Investigator 51269 | -1/Command | Destroyed Executioner 51293 | -1/Command | Destroyed 11 combat bots 52049 | -1/Command | Spotted M Guard 52049 | -1/Command | Spotted M Guard 52049 | -1/Command | Spotted Combat Programmer 52051 | -1/Command | Spotted Combat Programmer 52065 | -1/Command | Destroyed Combat Programmer 52079 | -1/Command | Core integrity fell below 50% 52082 | -1/Command | Destroyed M Guard 52084 | -1/Command | Emitted hypermatrix ping 52089 | -1/Command | Assembled emerged from beneath the floor 52098 | -1/Command | Core integrity fell below 20% 52098 | -1/Command | Destroyed M Guard 52102 | -1/Command | Destroyed Combat Programmer 52102 | -1/Command | All MAIN.C guards destroyed 52146 | -1/Command | Found Prototype Device 52146 | -1/Command | Identified Thermal Barrier 52154 | -1/Command | Found Prototype Device 52154 | -1/Command | Identified AEGIS Remote Shield 52161 | -1/Command | Found AEGIS Remote Shield 52396 | -1/Command | Assembled emerged from beneath the floor 52463 | -1/Command | Assembled emerged from beneath the floor 52629 | -1/Command | Assembled emerged from beneath the floor 52838 | -1/Command | Destroyed by H-88 Terminator with Heavy Machine Gun Last Messages --------------- 52832_ Wall collapses. 52832_ Acquired 36 matter. 52833_ Slug penetrates Wall. 52833_ Penetrated by Slug. 52834_ HV Slug penetrates H-88 Terminator. 52834_ H-88 Terminator suffers critical hit (Destroy). 52834_ H-88 Terminator destroyed. 52834_ HV Slug penetrates H-88 Terminator. 52834_ H-88 Terminator suffers critical hit (Destroy). 52834_ Destroyed Unknown Leg. 52834_ Slug penetrates H-88 Terminator. 52834_ H-88 Terminator suffers critical hit (Destroy). 52834_ H-88 Terminator destroyed. 52835_ Acquired 32 matter. 52835_ Acquired 4 matter. 52837_ HV Slug penetrates H-88 Terminator. 52837_ H-88 Terminator suffers critical hit (Destroy). 52837_ H-88 Terminator destroyed. 52838_ Acquired 36 matter. 52838_ Penetrated by Slug. Map ----- +----------------------------------------------------+ | ???????????????????????# #??# # ## "" = | | ???????????????????????# #??# # ## | | ???????????????????????# #??# # ## | | ???????????????????????# #??# #] ## | | ???????????????????????# #??# # ## | | ???????????????????????# #### # ############# | | ???????????????????????# # #???????????? | | ????????##????????????## ! #####???????????? | | ?????????"=???????????#" #???????????????? | | ?????????# =??????????## #???########????? | | ?????????? #?????####### #???#% %% ###### | | ?????????#?=*#????# ##" #####% % | | ?????????#*?#%#???# % ###=! % % % | | ?????????#%/#==####%[ #?#=%= % % | | ++###""#=#!=*%==#%!#=####[*#### ######= % % % [ | | !%= %[=[%[[!]%%%==[=![%=#??# #????#== ##"##" | | = * =!*%=%%[*=[*%!==*[[!%??# #????#%!% %###"##= | | =![%%%!%%!=[%!!%%![ !=%####/#######%%%*%=[=/=% | | =%%![%%!%=[=*%==/% s=*# *!*=%%%!!%!! [ | | #####//#*%[*= ! ###%%%###h%# [==#=%%=!!% | | ???????#=!!%% ??#!=*#?#%!# "" = /#!*!!!!%!! | | ???????#[%==[ #???#/=%#?#==# ""T" %[!*=*%*!%=== | | ???????#=!%%##????#%==###%*# "" "/ =%%=%%%!=/![ | | ?????? =[%???????#####?#%!# !!%#%/=%=== *[ | | ????#!=# #??????????????#[%# =%[!!=%!/%*!=%! | | ????#!?#????????????????#@ # |!*#=*%*=%[![= | | ????????????????????????# + [!#%==*==!%** | | ????????????????????????#% # =#!!==%![=[% | | ???????????????????????## #############=!=!!%!%*[ | | ???????????????????????#/ *%###########!=!=%!!!!!! | | ???????????????????????#!![== !=![!! !*=/%=[!%=*=! | | ???????????????????????#|%[=*%=[!=[[*[[%==%=]=!!!= | | ???????????????????????# !!=##"=[! ! !![=*!=!!*/ | | ???????????????????????######*!!/[*! !=[%/#"[%!%*= | | ???????????????????????????# "==! !% ![*##!!"#= | | ???????????????????????????####===!* %!=//####"#=/ | | ???????????????????????????+ == * ! !% = #??# # | | ????????????????????????? # ! ![=[= #??### | | ???????????????????????????# [######+####???# | | ???????????????????????????# + ??#* | | ???????????????????????????# # ### ! | | ???????????????????????????# ?# """ + [ | | ???????????????????????????# ?+ ""R" = ###"# | | ???????????????????????????####??? "" " ??##? | | ?????????????????????????????????# ?????? | | ?????????????????????????????????# ?????? | | ?????????????????????????????????##########??????? | | | | | | | +----------------------------------------------------+ Best States ------------- Heat Dissipation 134 Energy Generation 141 Energy Capacity 950 Matter Stores 450 Matter Capacity 450 Sight Range 20 Robot Scan Range 22 Terrain Scan Density 10 Power Amplification 50 Armor Coverage 900 Resistance: KI 30 Resistance: TH 20 Resistance: EX 90 Power Shielding 90 Weapon Cycling 30 Evasion (%) 40 Targeting Accuracy 12 Target Analysis 15 Core Analysis 12 Recoil Reduction 6 Kinecelleration 50 Offensive Hacking 20 Defensive Hacking 10 Item Schematics ----------------- Adv. Heavy Siege Treads | -3/Section 7 | Hacked Adv. Dynamic Insulation System | -3/Section 7 | Archive Robot Schematics ------------------ S-43 Plague | -3/Section 7 | Archive Fabricated ------------ Lrn. Tractor Beam | x2 | -7/Factory Hvy. Siege Treads | x2 | -5/Factory Hvy. Siege Treads | x2 | -5/Factory Alien Tech Used ----------------- Integrated Reactor Core Reset Matrix Integrated Thermoelectric Network Transdimensional Reconstructor Core Membrane Spacefold Activator High-powered Transdimensional Reconstructor Achievements -------------- None Challenges ------------ None RPGLIKE | -11 -10 -10 -9 -9 -9 -8 -8 -7 -6 -6 -6 -6 -6 -6 -6 -5 -5 -5 -5 -5 -5 -4 -4 -4 -4 -4 -3 -3 -3 -3 -2 -2 -1 -1 --------- Run | Scr Mat Min Mat Min Exi Min Mat Fac Fac Was Fac Ext Cet Arc Hub Fac Was Fac Upp Upp Zhi Pro Fac Upp Upp War Pro Res Qua Sec Res Tes Acc Com Levels Raised 38 | . 2 2 5 . . 2 2 4 1 . 2 1 . . 1 1 . 2 . . . 1 2 . . . . 2 2 . 2 1 2 1 XP Earned 60855 | 3000 3362 3018 7361 1070 117 1663 3135 6552 734 67 3514 1029 462 171 1038 1952 32 3116 103 149 50 783 2693 138 139 466 502 2975 1610 1184 2985 1038 2805 1842 XP Spent 59890 | 2550 2900 3250 4750 2000 . . 7000 4400 . 2900 2500 1700 . . . 3200 . 3100 . . . . 2200 . . 560 . 4625 1660 1625 . . 1200 7770 Upgrades 112 | 5 4 3 4 1 . . 8 12 . 1 3 1 . . . 1 . 2 . . . . 11 . . 2 . 12 6 13 . . 2 21 Power Slot 2 | . 1 . . . . . 1 . . . . . . . . . . . . . . . . . . . . . . . . . . . Propulsion Slot 5 | 1 . . 1 . . . 1 . . . . . . . . . . 2 . . . . . . . . . . . . . . . . Utility Slot 10 | 2 1 1 1 1 . . 1 1 . 1 . . . . . 1 . . . . . . . . . . . . . . . . . . Weapon Slot 5 | 1 1 1 . . . . . . . . 1 1 . . . . . . . . . . . . . . . . . . . . . . Core Integrity 33 | . . . . . . . . . . . . . . . . . . . . . . . . . . . . . 4 13 . . . 16 Heat Dissipation 13 | . . . . . . . . 1 . . . . . . . . . . . . . . 10 . . 2 . . . . . . . . Energy Generation 4 | . . . . . . . . . . . . . . . . . . . . . . . . . . . . . . . . . . 4 Inventory Capacity 6 | 1 1 1 2 . . . 1 . . . . . . . . . . . . . . . . . . . . . . . . . . . Sight Range 4 | . . . . . . . . . . . . . . . . . . . . . . . . . . . . 2 . . . . 2 . Sensor Range 11 | . . . . . . . . 9 . . . . . . . . . . . . . . . . . . . 2 . . . . . . Ranged Accuracy 5 | . . . . . . . . 1 . . 2 . . . . . . . . . . . . . . . . . 2 . . . . . Hack Attack % 4 | . . . . . . . 2 . . . . . . . . . . . . . . . 1 . . . . 1 . . . . . . Hack Defense % 2 | . . . . . . . 2 . . . . . . . . . . . . . . . . . . . . . . . . . . . KI Resistance % 4 | . . . . . . . . . . . . . . . . . . . . . . . . . . . . 3 . . . . . 1 TH Resistance % 4 | . . . . . . . . . . . . . . . . . . . . . . . . . . . . 4 . . . . . . Protomatter Created 31287 | . 191 105 869 123 93 246 647 1513 . 89 1664 131 99 69 646 665 137 1033 61 250 . 400 2442 365 262 556 156 2613 842 2782 4050 1446 3091 3651 Integrity Restored 29078 | . 474 452 1029 187 333 725 1371 1400 . 439 1925 551 349 41 252 726 . 1037 14 74 . 185 990 98 . 770 112 1482 766 3737 3498 818 1481 3762 Core 20823 | . 474 259 708 121 333 295 269 976 . . 1173 371 12 28 146 503 . 771 9 53 . 133 734 74 . 567 80 1026 620 3190 2746 676 1208 3268 Parts 8255 | . . 193 321 66 . 430 1102 424 . 439 752 180 337 13 106 223 . 266 5 21 . 52 256 24 . 203 32 456 146 547 752 142 273 494 Protomatter Decayed 32239 | . 33 1 415 119 . . 144 942 . . 961 373 222 188 872 590 137 1425 18 62 . 347 2263 380 317 1502 79 2162 638 1625 7991 1436 4301 2696 Game ------ Seed TitaniumSurveybotGravjet Manual? 0 Play Time 05:45:46 Cumulative 1627.3 hours Start 2022.11.25 @ 22:31:22 End 2022.11.26 @ 15:44:12 Sessions 3 Manual Loads 0 Difficulty Rogue Special Mode Winter2019/RPGLIKE Game No. 569 Rogue 569 Adventurer 0 Explorer 0 Win Type - Total 119 Types 26/12/50/6/1/2/20/1/1 Lore% 97 Gallery% 97 Achievement% 86 Wizard Run 0 Options --------- ASCII 0 Keyboard 0 Movement Numpad Keybinds 0 Fullscreen 1 Font 18/SmallcapsGlow Map View 76x50 Tactical HUD 1 Map Filters NONE Filters NONE Steam 1 RUN: a2c21bc7-dc7c-44ee-96d9-290bd33b2aad